Workbook

Sheet Accueil
B1: CARPE©
B2: (Conseils et Accompagnement pour les Réglages de Pêches Electriques)
B3: Accueil
B5: AVANT DE COMMENCER UNE PECHE
B7: RETROUVER LES CARACTERISTIQUES D'UNE PECHE PRECEDENTE
B9: FICHES TECHNIQUES DES APPAREILS DE PECHE ELECTRIQUE
B11: AIDE AU CHOIX D'UN MATERIEL AVANT L'ACHAT
B14: cliquer sur l'onglet de votre choix

Sheet Avant de commencer une pêche
A1: AVANT DE COMMENCER UNE PECHE
A3: Type d'engin | B3: Courant utilisé | C3: Sélectionner
A4: Portatif avec 1 anode | B4: Continu | C4: Cliquer ici
A5: Portatif avec 1 anode | B5: Continu Pulsé | C5: Cliquer ici
A6: Non Portatif avec 1 anode | B6: Continu | C6: Cliquer ici
A7: Non Portatif avec 2 anodes | B7: Continu | C7: Cliquer ici
B9: GUIDE DE PECHE
B12: Retour à l'Accueil

Sheet Retrouver les caractéristiques
A1: RETROUVER LES CARACTERISTIQUES D'UNE PECHE PRECEDENTE
A3: Type d'engin | B3: Courant utilisé | C3: Sélectionner
A4: Portatif avec 1 anode | B4: Continu | C4: Cliquer ici
A5: Portatif avec 1 anode | B5: Continu Pulsé | C5: Cliquer ici
A6: Non Portatif avec 1 anode | B6: Continu | C6: Cliquer ici
A7: Non Portatif avec 2 anodes | B7: Continu | C7: Cliquer ici
A10: GUIDE POUR RETROUVER LES CARACTERISTIQUES
B13: Retour à l'Accueil

Sheet Aide d'achat d'un matériel
A1: AIDE AU CHOIX D'UN MATERIEL AVANT L'ACHAT
A3: Type d'engin | B3: Courant utilisé | C3: Sélectionner
A4: Portatif avec 1 anode | B4: Continu | C4: Cliquer ici
A5: Portatif avec 1 anode | B5: Continu Pulsé | C5: Cliquer ici
A6: Non Portatif avec 1 anode | B6: Continu | C6: Cliquer ici
A7: Non Portatif avec 2 anodes | B7: Continu | C7: Cliquer ici
A10: GUIDE D'AIDE AU CHOIX D'UN MATERIEL
B13: Retour à l'Accueil

Sheet Portatif DC
A2: Paramètres du modèle :
A3: Parameters | B3: Values | C3: Standard deviation | D3: Student t value | E3: Pr > t
A4: Constant | B4: -34.45222 | C4: 3.540547 | D4: -9.73076 | E4: <0,001
A5: D(0.1 V.cm-1) | B5: 1.60701 | C5: 0.040932 | D5: 39.26009 | E5: <0,001
A6: Duty cycle (%) | B6: 0.26811 | C6: 0.034723 | D6: 7.72149 | E6: <0,001
B8: AVANT DE COMMENCER UNE PECHE
B9: Rayon d'ATTRACTION (cm) | C9: 100
B10: Conductivité spécifique pour 25°C (µS/cm) | C10: 500
B11: Température (°C) | C11: 13.1
B12: Conductivité Ambiante (µS/cm²) | C12: =$C$10/(1.023^(25-$C$11)) -> 381.4608421
B13: Modèle Anode | C13: Anode INOX 40 cm
B14: Modèle Cathode | C14: Cathode Cuivre ELT60 II Hans Grassl
A15: Résistance anode (Ohm) à 350µS/cm | B15: =IF(C13=A87,B87, IF(C13=A88,B88, IF(C13=A89,B89, IF(C13=A90,B90, IF(C13=A91,B91, IF(C13=A92,B92, IF(C13=A93,B93,IF(C13=A94,B94,IF(C13=A95,B95,"X"))))))))) -> 30.32563278
A16: Résistance cathode (Ohm) à 350µS/cm | B16: =IF(C14=B65,F65,IF(C14=B66,F66,IF(C14=B67,F67,IF(C14=B68,F68,IF(C14=B69,F69,IF(C14=B70,F70,IF(C14=B71,F71,IF(C14=B72,F72,"X")))))))) -> 19.4907083
A17: Résistance ambiante Anode (Ohm) | B17: =(B15*350)/C12 -> 27.82453741
A18: Résistance ambiante Cathode (Ohm) | B18: =(B16*350)/C12 -> 17.88321933
A19: Résistance équivalente Totale (Ohm) | B19: =B17+B18 -> 45.70775675
A20: Tension appliquée à l'Anode (V) | B20: =(B5-1.96*C5)*C9+(B6-1.96*C6)*100+(B4-C4*1.96) -> 131.2919279 | C20: =B5*C9+B6*100+B4 -> 153.05978 | D20: =(B5+1.96*C5)*C9+(B6+1.96*C6)*100+(B4+1.96*C4) -> 174.8276321
B21: REGLAGES DE LA TENSION / INFORMATIONS SUPPLEMENTAIRES
B22: MINIMALE | C22: MOYENNE | D22: MAXIMALE
A23: Tension à REGLER sur l'Appareil (V) | B23: =B20*(B19/B17) -> 215.6750861 | C23: =C20*(B19/B17) -> 251.4334412 | D23: =D20*(B19/B17) -> 287.1917963
A24: Rayon de TETANIE moyen (cm) | B24: =K35+K36*B20 -> 12.59381887 | C24: =K35+K36*C20 -> 13.57576668 | D24: =K35+K36*D20 -> 14.55771448
A25: Puissance de sortie requise (W) | B25: =(B23^2)/$B$19 -> 1017.677219 | C25: =(C23^2)/$B$19 -> 1383.108248 | D25: =(D23^2)/$B$19 -> 1804.488641
A26: Charge électrique de la batterie (Ah) | B26: 7
A27: Tension fournie par la batterie (V) | B27: 24
A28: Temps de décharge pour 25% profondeur de décharge de la batterie (minutes) à ne pas dépasser | B28: =((B26*B27)/B25)*0.25*60 -> 2.47622719 | C28: =((B26*B27)/C25)*0.25*60 -> 1.821983206 | D28: =((B26*B27)/D25)*0.25*60 -> 1.396517519
J32: Paramètres du modèle :
J33: R²aj. (coefficient de détermination ajusté) | K33: 0.17
J34: Paramètre | K34: Valeur | L34: Ecart-type | M34: t de Student | N34: Pr > t | O34: Borne inférieure 95 % | P34: Borne supérieure 95 %
J35: Constant | K35: 6.67124 | L35: 1.02303 | M35: 6.521 | N35: <0,001 | O35: =6.67124-1.96*1.02303 -> 4.6661012 | P35: =6.67124+1.96*1.02303 -> 8.6763788 | Q35: 0.17 | S35: 54
J36: Va | K36: 0.04511 | L36: 0.01326 | M36: 3.402 | N36: 0.00129 | O36: =0.04511-1.96*0.01326 -> 0.0191204 | P36: =0.04511+1.96*0.01326 -> 0.0710996
J37: L'équation du modèle s'écrit : D(1V/cm) = 6,671 + 0,045*Va
B39: RETROUVER LES CARACTERISTIQUES D'UNE PECHE PRECEDENTE
B40: Tension réglée sur l'appareil (V) | C40: 120
B41: Tension appliquée à l'Anode (V) | C41: =C40*(B49/B51) -> 64.1256132
B42: Conductivité spécifique pour 25°C (µS/cm) | C42: 213
B43: Température (°C) | C43: 13
B44: Conductivité Ambiante (µS/cm²) | C44: =$C$42/(1.023^(25-$C$43)) -> 162.1332166
B45: Modèle Anode | C45: Anode LR-24 (Smith Root) 28 cm aluminium
B46: Modèle Cathode | C46: Cathode INOX LR-24 Smith Root
A47: Résistance anode (Ohm) à 350µS/cm | B47: =IF(C45=A87,B87, IF(C45=A88,B88, IF(C45=A89,B89, IF(C45=A90,B90, IF(C45=A91,B91, IF(C45=A92,B92, IF(C45=A93,B93,IF(C45=A94,B94,IF(C45=A95,B95,"X"))))))))) -> 37.09326131
A48: Résistance cathode (Ohm) à 350µS/cm | B48: =IF(C46=B65,F65,IF(C46=B66,F66,IF(C46=B67,F67,IF(C46=B68,F68,IF(C46=B69,F69,IF(C46=B70,F70,IF(C46=B71,F71,IF(C46=B72,F72,"X")))))))) -> 32.32036509
A49: Résistance ambiante Anode (Ohm) | B49: =(B47*350)/C44 -> 80.07391533
A50: Résistance ambiante Cathode (Ohm) | B50: =(B48*350)/C44 -> 69.77057519
A51: Résistance équivalente Totale (Ohm) | B51: =B49+B50 -> 149.8444905
B52: INFORMATIONS SUR LE CHAMP ELECTRIQUE / PUISSANCE REQUISE
B53: MINIMALE | C53: MOYENNE | D53: MAXIMALE
A54: Rayon d'ATTRACTION (cm) | B54: =O5+O6*C41 -> 0 | C54: =K5+K6*C41 -> 0 | D54: =P5+P6*C41 -> 0
A55: Rayon de TETANIE (cm) | B55: =O35+O36*C41 -> 5.892208575 | C55: =K35+K36*C41 -> 9.563946412 | D55: =P35+P36*C41 -> 13.23568425
A56: Puissance Requise (VA) | B56: =($C$40^2)/B51 -> 96.09962936
A57: Charge électrique de la batterie (Ah) | B57: 7
A58: Tension fournie par la batterie (V) | B58: 24
A59: Temps de décharge pour 25% profondeur de décharge de la batterie (minutes) à ne pas dépasser | B59: =((B57*B58)/B56)*0.25*60 -> 26.22278584
A62: Tableaux des résistances des cathodes et des anodes
A63: Taille des Cathodes et la Résistance Equivalente mesurée à une conductivité ambiante de 350 µS.cm-1
A64: Référence Cathode | B64: Type de Cathode | C64: Dimension 1 cm) | D64: Dimension 2 (cm) | E64: Epaisseur du cordon/ Taille de la Maille (mm) | F64: Résistance mesurée en Ω
A65: P | B65: Cathode Héron Dream Electronique | C65: 4 tresses de 850 *10 sur une tige de métal | F65: 6.726921288
A66: R | B66: Cathode Martin Pêcheur Dream Electronique | E66: 3 | F66: 33.03808302
A67: S | B67: Cathode Cuivre ELT60 II Hans Grassl | C67: 210 | D67: 15 | E67: 3 | F67: 19.4907083
A68: T | B68: Cathode INOX LR-24 Smith Root | C68: 110 | E68: 5 | F68: 32.32036509
A69: A | B69: Bande de Cuivre 75*2,5 cm | C69: 75 | D69: 2.5 | E69: 3 | F69: 48
A70: B | B70: Bande de Cuivre 150*2,5 cm | C70: 150 | D70: 2.5 | E70: 3 | F70: 31
A71: C | B71: Bande de Cuivre 300*2,5 cm | C71: 300 | D71: 2.5 | E71: 3 | F71: 20
A72: H | B72: Cathode cuivre EL63II 5 mètres | C72: 500 | D72: 2.5 | F72: 15.55702778
A73: D | B73: Maille d'Acier | C73: 25 | D73: 25 | E73: 13 | F73: 49
A74: E | B74: Maille d'Acier | C74: 50 | D74: 50 | E74: 13 | F74: 27
A75: F | B75: Maille d'Acier | C75: 75 | D75: 75 | E75: 13 | F75: 19
A76: G | B76: Maille d'Aluminium expansé | C76: 60 | D76: 55 | E76: 25.4 | F76: 26
A77: H | B77: Maille d'Aluminium perforé | C77: 29 | D77: 39 | F77: 35
A78: I | B78: Maille d'Aluminium perforé | C78: 16 | D78: 17 | F78: 60
A79: J | B79: Plaque d'Aluminium épaisse de 2 mm | C79: 30 | D79: 41 | F79: 34
A80: K | B80: Tôle perforée en Acier Inoxydable | C80: 50 | D80: 50 | E80: 6 | F80: 21
A81: L | B81: Treillis d'Acier soudé | C81: 29 | D81: 40 | E81: 25.4 | F81: 34
A82: M | B82: Treillis d'Acier soudé | C82: 17 | D82: 17 | E82: 25.4 | F82: 64
A83: N | B83: Cable inox | C83: 110 | E83: 5 | F83: 40
A84: O | B84: 8 tresses de cuivre de 90*1 soudées sur une barre en cuivre | E84: 3 | F84: 20
A85: Résistances équivalentes Anodes pour une conductivité ambiante de 350 µS.cm-1
A86: Type d'anode | B86: Résistance mesurée en Ω
A87: Anode Martin Pêcheur (Dream Electronique) 35 cm aluminium | B87: 30.99619023 | C87: Si l'anode n'est pas dans la liste ci-contre :
A88: Anode LR-24 (Smith Root) 28 cm aluminium | B88: 37.09326131
A89: Anode ELT60II (Hans Grassl) 40 cm inox | B89: 27.56274472 | C89: Diamètre anode Da (mm) =
A90: Anode EL63II (Hans Grassl) 30 cm inox | B90: 31.01977771
A91: Anode INOX 20 cm | B91: 41.42431299 | C91: Résistance anode Ra (Ohm) à 350µS/cm
A92: Anode INOX 30 cm | B92: 37.64376653 | D92: (Beaumont et al., 2005)
A93: Anode INOX 40 cm | B93: 30.32563278
A94: Anode INOX 50 cm | B94: 25.34799978
A95: Anode canne anglaise 36 cm de long inox | B95: 30.55818191
B103: Portatif Courant Continu 1 Anode
B107: Retour à la page précédente
B109: Retour à l'Accueil

Sheet Portatif PDC
A1: Paramètres du modèle :
A2: R²aj. (coefficient de détermination ajusté)
A3: Variable modélisée | B3: Valeur | C3: Erreur-standard | D3: t de Student | E3: Pr > t | F3: Borne de prédiction inférieure 95 % | G3: Borne de prédiction supérieure 95 % | H3: R² ajusté | I3: AIC
A4: Constant | B4: -34.45222 | C4: 3.540547 | D4: -9.73076 | E4: <0,001
A5: D(0.1 V.cm-1) | B5: 1.60701 | C5: 0.040932 | D5: 39.26009 | E5: <0,001
A6: Duty cycle (%) | B6: 0.26811 | C6: 0.034723 | D6: 7.72149 | E6: <0,001
B9: AVANT DE COMMENCER UNE PECHE
B10: Rayon d'ATTRACTION (cm) | C10: 80
B11: Conductivité spécifique pour 25°C (µS/cm) | C11: 200
B12: Température (°C) | C12: 12
B13: Conductivité Ambiante (µS/cm²) | C13: =$C$11/(1.023^(25-$C$12)) -> 148.8150167
B14: Modèle Anode | C14: Anode INOX 30 cm
B15: Modèle Cathode | C15: Cathode Martin Pêcheur Dream Electronique
B16: Résistance anode (Ohm) à 350µS/cm | C16: =IF(C14=A69,B69, IF(C14=A70,B70, IF(C14=A71,B71, IF(C14=A72,B72, IF(C14=A73,B73, IF(C14=A74,B74, IF(C14=A75,B75,IF(C14=A76,B76,IF(C14=A77,B77,"X"))))))))) -> 37.64376653
B17: Résistance cathode (Ohm) à 350µS/cm | C17: =IF(C15=B47,F47,IF(C15=B48,F48,IF(C15=B49,F49,IF(C15=B50,F50,IF(C15=B51,F51,IF(C15=B52,F52,IF(C15=B53,F53,IF(C15=B54,F54,"X")))))))) -> 33.03808302
B18: Rapport cyclique (%) | C18: 25
B19: Résistance ambiante Anode (Ohm) | C19: =(C16*350)/C13 -> 88.53487086
B20: Résistance ambiante Cathode (Ohm) | C20: =(C17*350)/C13 -> 77.70270309
B21: Résistance équivalente Totale (Ohm) | C21: =C19+C20 -> 166.237574
A22: Tension appliquée à l'Anode (V) | B22: =(B4-1.96*C4)+(B5-1.96*C5)*C10+(B6-1.96*C6)*C18 -> 85.75229328 | C22: =B4+B5*C10+B6*C18 -> 100.81133 | D22: =(B4+1.96*C4)+(B5+1.96*C5)*C10+(B6+1.96*C6)*C18 -> 115.8703667
B23: REGLAGES DE LA TENSION / INFORMATIONS SUPPLEMENTAIRES
B24: MINIMALE | C24: MOYENNE | D24: MAXIMALE
A25: Tension à REGLER sur l'Appareil (V) | B25: =B22*($C$21/$C$19) -> 161.0128648 | C25: =C22*($C$21/$C$19) -> 189.2884777 | D25: =D22*($C$21/$C$19) -> 217.5640905
A26: Rayon de TETANIE moyen (cm) | B26: =C22*B38+B37+B39*C18-1.159 -> 21.35320271 | C26: =C22*B38+B37+B39*C18 -> 22.51220271 | D26: =D22*B38+B37+B39*C18+1.159 -> 26.15177242
A27: Puissance de sortie requise (W) | B27: =(B25^2/C21)*(C18/100) -> 38.988091 | C27: =(C25^2/C21)*(C18/100) -> 53.88391885 | D27: =(D25^2/C21)*(C18/100) -> 71.18446864
A28: Charge électrique de la batterie (Ah) | B28: 7
A29: Tension fournie par la batterie (V) | B29: 24
A30: Temps de décharge pour 25% profondeur de décharge de la batterie (minutes) à ne pas dépasser | B30: =((B28*B29)/B27)*0.25*60 -> 64.63512152 | C30: =((B28*B29)/C27)*0.25*60 -> 46.76719982 | D30: =((B28*B29)/D27)*0.25*60 -> 35.40098069
A34: Paramètres du modèle :
A35: R²aj. (coefficient de détermination ajusté) | B35: 0.6960198364
A36: Variable modélisée | B36: Valeur | C36: Erreur-standard | D36: t de Student | E36: Pr > t | F36: Borne de prédiction inférieure 95 % | G36: Borne de prédiction supérieure 95 % | H36: R² ajusté | I36: AIC | J36: Individus statistiques | K36: AIC | L36: Individus statistiques
A37: Constant | B37: 6.753558 | C37: 0.8076176 | D37: 8.362321 | E37: <0,001 | J37: 221 | L37: 221
A38: Va | B38: 0.164723 | C38: 0.0070645 | D38: 23.317094 | E38: <0,001
A39: Duty cycle (%) | B39: -0.033892 | C39: 0.0173118 | D39: -1.957744 | E39: 0.0515
A44: Tableaux des résistances des cathodes et des anodes
A45: Taille des Cathodes et la Résistance Equivalente mesurée à une conductivité ambiante de 350 µS.cm-1
A46: Référence Cathode | B46: Type de Cathode | C46: Dimension 1 cm) | D46: Dimension 2 (cm) | E46: Epaisseur du cordon/ Taille de la Maille (mm) | F46: Résistance mesurée en Ω
A47: P | B47: Cathode Héron Dream Electronique | C47: 4 tresses de 850 *10 sur une tige de métal | F47: 6.726921288
A48: R | B48: Cathode Martin Pêcheur Dream Electronique | E48: 3 | F48: 33.03808302
A49: S | B49: Cathode Cuivre ELT60 II Hans Grassl | C49: 210 | D49: 15 | E49: 3 | F49: 19.4907083
A50: T | B50: Cathode INOX LR-24 Smith Root | C50: 110 | E50: 5 | F50: 32.32036509
A51: A | B51: Bande de Cuivre 75*2,5 cm | C51: 75 | D51: 2.5 | E51: 3 | F51: 48
A52: B | B52: Bande de Cuivre 150*2,5 cm | C52: 150 | D52: 2.5 | E52: 3 | F52: 31
A53: C | B53: Bande de Cuivre 300*2,5 cm | C53: 300 | D53: 2.5 | E53: 3 | F53: 20
A54: H | B54: Cathode cuivre EL63II 5 mètres | C54: 500 | D54: 2.5 | F54: 15.55702778
A55: D | B55: Maille d'Acier | C55: 25 | D55: 25 | E55: 13 | F55: 49
A56: E | B56: Maille d'Acier | C56: 50 | D56: 50 | E56: 13 | F56: 27
A57: F | B57: Maille d'Acier | C57: 75 | D57: 75 | E57: 13 | F57: 19
A58: G | B58: Maille d'Aluminium expansé | C58: 60 | D58: 55 | E58: 25.4 | F58: 26
A59: H | B59: Maille d'Aluminium perforé | C59: 29 | D59: 39 | F59: 35
A60: I | B60: Maille d'Aluminium perforé | C60: 16 | D60: 17 | F60: 60
A61: J | B61: Plaque d'Aluminium épaisse de 2 mm | C61: 30 | D61: 41 | F61: 34
A62: K | B62: Tôle perforée en Acier Inoxydable | C62: 50 | D62: 50 | E62: 6 | F62: 21
A63: L | B63: Treillis d'Acier soudé | C63: 29 | D63: 40 | E63: 25.4 | F63: 34
A64: M | B64: Treillis d'Acier soudé | C64: 17 | D64: 17 | E64: 25.4 | F64: 64
A65: N | B65: Cable inox | C65: 110 | E65: 5 | F65: 40
A66: O | B66: 8 tresses de cuivre de 90*1 soudées sur une barre en cuivre | E66: 3 | F66: 20
A67: Résistances équivalentes Anodes pour une conductivité ambiante de 350 µS.cm-1
A68: Type d'anode | B68: Résistance mesurée en Ω
A69: Anode Martin Pêcheur (Dream Electronique) 35 cm aluminium | B69: 30.99619023 | C69: Si l'anode n'est pas dans la liste ci-contre :
A70: Anode LR-24 (Smith Root) 28 cm aluminium | B70: 37.09326131
A71: Anode ELT60II (Hans Grassl) 40 cm inox | B71: 27.56274472 | C71: Diamètre anode Da (mm) =
A72: Anode EL63II (Hans Grassl) 30 cm inox | B72: 31.01977771
A73: Anode INOX 20 cm | B73: 41.42431299 | C73: Résistance anode Ra (Ohm) à 350µS/cm
A74: Anode INOX 30 cm | B74: 37.64376653 | D74: (Beaumont et al., 2005)
A75: Anode INOX 40 cm | B75: 30.32563278
A76: Anode INOX 50 cm | B76: 25.34799978
A77: Anode canne anglaise 36 cm de long inox | B77: 30.55818191
B83: Portatif Courant Continu Pulsé 1 Anode
B87: Retour à la page précédente
B89: Retour à l'Accueil

Sheet NON Portatif 1 Anode
A1: Paramètres du modèle :
A2: R²aj. (coefficient de détermination ajusté)
A3: Paramètre | B3: Valeur | C3: Erreur standard | D3: t de Student | E3: Pr > t | F3: Borne inférieure 95 % | G3: Borne supérieure 95 %
A4: Constant | H4: 0.87 | J4: 168
A5: D(0.1 V.cm-1) | B5: 1.3 | C5: 0.012 | D5: 33.41 | E5: 0.001
A6: Model equation: Va = -22.62 + 1.87 * D(0.1 V.cm-1)
B7: AVANT DE COMMENCER UNE PECHE
B8: Rayon d'ATTRACTION (cm) | C8: 200
B9: Conductivité spécifique pour 25°C (µS/cm) | C9: 200
B10: Température (°C) | C10: 16
B11: Conductivité Ambiante (µS/cm²) | C11: =C9/(1.023^(25-C10)) -> 162.9856213 | D11: =C9/(1.023^(25-C10)) -> 162.9856213
B12: Modèle Anode | C12: Anode INOX 30 cm
B13: Modèle Cathode | C13: Cathode Héron Dream Electronique
A14: Résistance anode (Ohm) à 350µS/cm | B14: =IF(C12=A90,B90,IF(C12=A91,B91,IF(C12=A92,B92,IF(C12=A93,B93,IF(C12=A94,B94,IF(C12=A95,B95,IF(C12=A96,B96,IF(C12=A97,B97,IF(C12=A98,B98,"X"))))))))) -> 37.64376653 | C14: =B14 -> 37.64376653 | D14: =C14 -> 37.64376653
A15: Résistance cathode (Ohm) à 350µS/cm | B15: =IF(C13=B68,F68,IF(C13=B69,F69,IF(C13=B70,F70,IF(C13=B71,F71,IF(C13=B72,F72,IF(C13=B73,F73,IF(C13=B74,F74,IF(C13=B75,F75,"X")))))))) -> 6.726921288 | C15: =B15 -> 6.726921288 | D15: =C15 -> 6.726921288
A16: Résistance ambiante Anode (Ohm) | B16: =B14*350/C11 -> 80.83730443 | C16: =C14*350/C11 -> 80.83730443 | D16: =D14*350/D11 -> 80.83730443
A17: Résistance ambiante Cathode (Ohm) | B17: =B15*350/C11 -> 14.4455838 | C17: =C15*350/C11 -> 14.4455838 | D17: =D15*350/D11 -> 14.4455838
A18: Résistance équivalente Totale (Ohm) | B18: =B17+B16 -> 95.28288824 | C18: =C17+C16 -> 95.28288824 | D18: =D17+D16 -> 95.28288824
A19: Tension appliquée à l'anode (V) | B19: =(B5-1.96*C5)*C8 -> 255.296 | C19: =B4+B5*C8 -> 260 | D19: =(B5+1.96*C5)*C8 -> 264.704
B20: REGLAGES DE LA TENSION / INFORMATIONS SUPPLEMENTAIRES
B21: MINIMALE | C21: MOYENNE | D21: MAXIMALE
A22: Tension à REGLER sur l'Appareil (V) | B22: =B19*(B18/B16) -> 300.917261 | C22: =C19*(C18/C16) -> 306.4618633 | D22: =D19*(D18/D16) -> 312.0064656
A23: Rayon de TETANIE moyen (cm) | B23: =B32+B33*B19 -> 30.94213501 | C23: =B32+B33*C19 -> 31.440632 | D23: =B32+B33*D19 -> 31.93912899
A24: Puissance de sortie requise (W) | B24: =(((B22^2)/B18)) -> 950.3406082 | C24: =(((C22^2)/C18)) -> 985.6845799 | D24: =(((D22^2)/D18)) -> 1021.673843
A29: Paramètres du modèle :
A30: R²aj. (coefficient de détermination ajusté)
A31: Paramètre | B31: Valeur | C31: Erreur standard | D31: t de Student | E31: Pr > t | F31: Borne inférieure 95 % | G31: Borne supérieure 95 %
A32: Constant | B32: 3.887652 | C32: 1.1620564 | D32: 3.345494 | E32: 0.001 | F32: 3.1325414 | G32: 4.6427631 | H32: 0.5968952 | I32: 1197.849 | J32: 189
A33: Va | B33: 0.105973 | C33: 0.0063401 | D33: 16.714662 | E33: <0,001 | F33: 0.1027421 | G33: 0.1092042
A34: Model equation: D(1 V.cm-1) = 3.89 + 0.11 * Va
A38: Paramètres du modèle :
A39: R²aj. (coefficient de détermination ajusté) | B39: 0.81
A40: Paramètre | B40: Valeur | C40: Erreur standard | D40: t de Student | E40: Pr > t | F40: Borne inférieure 95 % | G40: Borne supérieure 95 %
A41: Constante | B41: 10.154102 | C41: 5.105975 | D41: 1.988671 | E41: < 0,05 | F41: -33.78 | G41: 54.09 | H41: 0.8095876 | I41: 186
A42: Va | B42: 0.693071 | C42: 0.024696 | D42: 28.063772 | E42: < 0,0001 | F42: 0.6925 | G42: 0.6936
A43: L'équation du modèle s'écrit : D(0,1 V/cm) = 10,15 + 0,69 * Va
B44: RETROUVER LES CARACTERISTIQUES D'UNE PECHE PRECEDENTE
B45: Tension réglée sur l'appareil (V) | C45: 200
B46: Tension appliquée à l'Anode (V) | C46: =C45*(B54/B56) -> 133.1645439
B47: Conductivité spécifique pour 25°C (µS/cm) | C47: 244
B48: Température (°C) | C48: 13
B49: Conductivité Ambiante (µS/cm²) | C49: =$C$47/(1.023^(25-$C$48)) -> 185.7300697
B50: Modèle Anode | C50: Anode Martin Pêcheur (Dream Electronique) 35 cm aluminium
B51: Modèle Cathode | C51: Cathode cuivre EL63II 5 mètres Hans Grassl
A52: Résistance anode (Ohm) à 350µS/cm | B52: =IF(C50=A90,B90,IF(C50=A91,B91,IF(C50=A92,B92,IF(C50=A93,B93,IF(C50=A94,B94,IF(C50=A95,B95,IF(C50=A96,B96,IF(C50=A97,B97,IF(C50=A98,B98,"X"))))))))) -> 30.99619023
A53: Résistance cathode (Ohm) à 350µS/cm | B53: =IF(C51=B68,F68,IF(C51=B69,F69,IF(C51=B70,F70,IF(C51=B71,F71,IF(C51=B72,F72,IF(C51=B73,F73,IF(C51=B74,F74,IF(C51=B75,F75,"X")))))))) -> 15.55702778
A54: Résistance ambiante Anode (Ohm) | B54: =(B52*350)/C49 -> 58.41093257 | C54: =B54 -> 58.41093257 | D54: =C54 -> 58.41093257
A55: Résistance ambiante Cathode (Ohm) | B55: =(B53*350)/C49 -> 29.31652226 | C55: =B55 -> 29.31652226 | D55: =C55 -> 29.31652226
A56: Résistance équivalente Totale (Ohm) | B56: =B54+B55 -> 87.72745483 | C56: =C54+C55 -> 87.72745483 | D56: =D54+D55 -> 87.72745483
B57: INFORMATIONS SUR LE CHAMP ELECTRIQUE / PUISSANCE REQUISE
B58: MINIMALE | C58: MOYENNE | D58: MAXIMALE
A59: Rayon d'ATTRACTION (cm) | B59: =F42*C46+F41 -> 58.43644669 | C59: =B42*C46+B41 -> 102.4465856 | D59: =G42*C46+G41 -> 146.4529277
A60: Rayon de TETANIE (cm) | B60: =F33*C46+F32 -> 16.81414629 | C60: =B33*C46+B32 -> 17.99949822 | D60: =G33*C46+G32 -> 19.18489059
A61: Puissance Requise (VA) | B61: =(((C45^2)/B56))*(1/0.6) -> 759.9293379
A65: Tableaux des résistances des cathodes et des anodes
A66: Taille des Cathodes et la Résistance Equivalente mesurée à une conductivité ambiante de 350 µS.cm-1
A67: Référence Cathode | B67: Type de Cathode | C67: Dimension 1 cm) | D67: Dimension 2 (cm) | E67: Epaisseur du cordon/ Taille de la Maille (mm) | F67: Résistance mesurée en Ω
A68: A | B68: Cathode Héron Dream Electronique | C68: 4 tresses de 850 *10 sur une tige de métal | F68: 6.726921288
A69: B | B69: Cathode Martin Pêcheur Dream Electronique | E69: 3 | F69: 33.03808302
A70: C | B70: Cathode Cuivre ELT60 II Hans Grassl | C70: 210 | D70: 15 | E70: 3 | F70: 19.4907083
A71: D | B71: Cathode INOX LR-24 Smith Root | C71: 110 | E71: 5 | F71: 32.32036509
A72: E | B72: Bande de Cuivre 75*2,5 cm | C72: 75 | D72: 2.5 | E72: 3 | F72: 48
A73: F | B73: Bande de Cuivre 150*2,5 cm | C73: 150 | D73: 2.5 | E73: 3 | F73: 31
A74: G | B74: Bande de Cuivre 300*2,5 cm | C74: 300 | D74: 2.5 | E74: 3 | F74: 20
A75: H | B75: Cathode cuivre EL63II 5 mètres Hans Grassl | C75: 500 | D75: 2.5 | F75: 15.55702778
A76: I | B76: Maille d'Acier | C76: 25 | D76: 25 | E76: 13 | F76: 49
A77: J | B77: Maille d'Acier | C77: 50 | D77: 50 | E77: 13 | F77: 27
A78: K | B78: Maille d'Acier | C78: 75 | D78: 75 | E78: 13 | F78: 19
A79: L | B79: Maille d'Aluminium expansé | C79: 60 | D79: 55 | E79: 25.4 | F79: 26
A80: M | B80: Maille d'Aluminium perforé | C80: 29 | D80: 39 | F80: 35
A81: N | B81: Maille d'Aluminium perforé | C81: 16 | D81: 17 | F81: 60
A82: O | B82: Plaque d'Aluminium épaisse de 2 mm | C82: 30 | D82: 41 | F82: 34
A83: P | B83: Tôle perforée en Acier Inoxydable | C83: 50 | D83: 50 | E83: 6 | F83: 21
A84: Q | B84: Treillis d'Acier soudé | C84: 29 | D84: 40 | E84: 25.4 | F84: 34
A85: R | B85: Treillis d'Acier soudé | C85: 17 | D85: 17 | E85: 25.4 | F85: 64
A86: S | B86: Cable inox | C86: 110 | E86: 5 | F86: 40
A87: T | B87: 8 tresses de cuivre de 90*1 soudées sur une barre en cuivre | E87: 3 | F87: 20
A88: Résistances équivalentes Anodes pour une conductivité ambiante de 350 µS.cm-1
A89: Type d'anode | B89: Résistance mesurée en Ω
A90: Anode Martin Pêcheur (Dream Electronique) 35 cm aluminium | B90: 30.99619023 | C90: Si l'anode n'est pas dans la liste ci-contre :
A91: Anode LR-24 (Smith Root) 28 cm aluminium | B91: 37.09326131
A92: Anode ELT60II (Hans Grassl) 40 cm inox | B92: 27.56274472 | C92: Diamètre anode Da (mm) =
A93: Anode EL63II (Hans Grassl) 30 cm inox | B93: 31.01977771
A94: Anode INOX 20 cm | B94: 41.42431299 | C94: Résistance anode Ra (Ohm) à 350µS/cm
A95: Anode INOX 30 cm | B95: 37.64376653 | D95: (Beaumont et al., 2005)
A96: Anode INOX 40 cm | B96: 30.32563278
A97: Anode INOX 50 cm | B97: 25.34799978
A98: Anode canne anglaise 36 cm de long inox | B98: 30.55818191
B105: NON Portatif Courant Continu 1 Anode
B109: Retour à la page précédente
B111: Retour à l'Accueil

Sheet NON Portatif 2 Anodes
A1: Paramètres du modèle :
A2: R²aj. (coefficient de détermination ajusté) | B2: 0.81
A3: Paramètre | B3: Valeur | C3: Erreur standard | D3: t de Student | E3: Pr > t | F3: Borne inférieure 95 % | G3: Borne supérieure 95 %
A4: Constant | H4: 0.7832238 | J4: 168
A5: D(0.1 V.cm-1) | B5: 1.3 | C5: 0.012 | D5: 33.41 | E5: 0.001
A6: Model equation: Va = -22.62 + 1.87 * D(0.1 V.cm-1)
B7: AVANT DE COMMENCER UNE PECHE
B8: Rayon d'ATTRACTION (cm) | C8: 100
B9: Conductivité spécifique pour 25°C (µS/cm) | C9: 231
B10: Température (°C) | C10: 13.1
B11: Conductivité Ambiante (µS/cm²) | C11: =C9/(1.023^(25-C10)) -> 176.234909 | D11: =C9/(1.023^(25-C10)) -> 176.234909
B12: Modèle Anode | C12: Anode INOX 20 cm
B13: Modèle Cathode | C13: Cathode Héron Dream Electronique
A14: Résistance anode (Ohm) à 350µS/cm | B14: =IF(C12=A104,B104,IF(C12=A105,B105,IF(C12=A108,B108,IF(C12=A109,B109,IF(C12=A110,B110,IF(C12=A111,B111,IF(C12=A106,B106,IF(C12=A107,B107,IF(C12=A112,B112,"X"))))))))) -> 41.42431299 | C14: =B14 -> 41.42431299 | D14: =C14 -> 41.42431299
A15: Résistance cathode (Ohm) à 350µS/cm | B15: =IF(C13=B82,F82,IF(C13=B83,F83,IF(C13=B84,F84,IF(C13=B85,F85,IF(C13=B86,F86,IF(C13=B87,F87,IF(C13=B88,F88,IF(C13=B89,F89,"X")))))))) -> 6.726921288 | C15: =B15 -> 6.726921288 | D15: =C15 -> 6.726921288
A16: Résistance ambiante Anode (Ohm) | B16: =B14*350/C11 -> 82.26809107
A17: Résistance ambiante équivalente 2 Anodes arrangées (Ohm) | B17: =B16/2 -> 41.13404553
A18: Résistance ambiante Cathode (Ohm) | B18: =B15*350/C11 -> 13.35956913 | C18: =B15*350/C11 -> 13.35956913 | D18: =B15*350/D11 -> 13.35956913
A19: Résistance équivalente Totale (Ohm) | B19: =B18+(B17) -> 54.49361467 | C19: =B19 -> 54.49361467 | D19: =B19 -> 54.49361467
A20: Tension appliquée à l'anode (V) | B20: =(B5-1.96*C5)*C8 -> 127.648 | C20: =B5*C8 -> 130 | D20: =(B5+1.96*C5)*C8 -> 132.352
B21: REGLAGES DE LA TENSION / INFORMATIONS SUPPLEMENTAIRES
B22: MINIMALE | C22: MOYENNE | D22: MAXIMALE
A23: Tension à REGLER sur l'Appareil (V) | B23: =B20*(B19/B17) -> 169.1056845 | C23: =C20*(C19/B17) -> 172.2215701 | D23: =D20*(D19/B17) -> 175.3374557
A24: Rayon de TETANIE moyen (cm) | B24: =B34*B20+ B33 -> 17.4148935 | C24: =B33+B34*C20 -> 17.664142 | D24: =B34*D20+B33 -> 17.9133905
A25: Puissance de sortie requise (W) | B25: =((($B$23^2)/(B17+B18))) -> 524.7721718 | C25: =((($C$23^2)/(B17+C18))) -> 544.2888931 | D25: =((($D$23^2)/(B17+D18))) -> 564.1619403
A30: Paramètres du modèle :
A31: R²aj. (coefficient de détermination ajusté) | B31: 0.58
A32: Paramètre | B32: Valeur | C32: Erreur standard | D32: t de Student | E32: Pr > t | F32: Borne inférieure 95 % | G32: Borne supérieure 95 %
A33: Constant | B33: 3.887652 | C33: 1.1620564 | D33: 3.345494 | E33: 0.001 | F33: 3.1325414 | G33: 4.6427631 | H33: 0.5968952 | I33: 1197.849 | J33: 189
A34: Va | B34: 0.105973 | C34: 0.0063401 | D34: 16.714662 | E34: <0,001 | F34: 0.1027421 | G34: 0.1092042
A35: Model equation: D(1 V.cm-1) = 3.89 + 0.11 * Va
A38: Paramètres du modèle :
A39: R²aj. (coefficient de détermination ajusté) | B39: 0.81
A40: Paramètre | B40: Valeur | C40: Erreur standard | D40: t de Student | E40: Pr > t | F40: Borne inférieure 95 % | G40: Borne supérieure 95 %
A41: Constante | B41: 10.154102 | C41: 5.105975 | D41: 1.988671 | E41: < 0,05 | F41: -33.78 | G41: 54.09 | H41: 0.8095876 | I41: 186
A42: Va | B42: 0.693071 | C42: 0.024696 | D42: 28.063772 | E42: < 0,0001 | F42: 0.6925 | G42: 0.6936
A43: L'équation du modèle s'écrit : D(0,1 V/cm) = 10,15 + 0,69 * Va
B44: RETROUVER LES CARACTERISTIQUES D'UNE PECHE PRECEDENTE
B45: Tension réglée sur l'appareil (V) | C45: 198.7
B46: Tension appliquée à l'Anode (V) | C46: =C45*(B55/B57) -> 129.8043405
B47: Conductivité spécifique pour 25°C (µS/cm) | C47: 231
B48: Température (°C) | C48: 13.1
B49: Conductivité Ambiante (µS/cm²) | C49: =$C$47/(1.023^(25-$C$48)) -> 176.234909
B50: Modèle Anode | C50: Anode INOX 50 cm
B51: Modèle Cathode | C51: Cathode Héron Dream Electronique
A52: Résistance anode (Ohm) à 350µS/cm | B52: =IF(C50=A104,B104,IF(C50=A105,B105,IF(C50=A108,B108,IF(C50=A109,B109,IF(C50=A110,B110,IF(C50=A111,B111,IF(C50=A106,B106,IF(C12=A107,B107,IF(C12=A112,B112,"X"))))))))) -> 25.34799978
A53: Résistance cathode (Ohm) à 350µS/cm | B53: =IF(C51=B82,F82,IF(C51=B83,F83,IF(C51=B84,F84,IF(C51=B85,F85,IF(C51=B86,F86,IF(C51=B87,F87,IF(C51=B88,F88,IF(C51=B89,F89,"X")))))))) -> 6.726921288 | C53: =B53 -> 6.726921288 | D53: =C53 -> 6.726921288
A54: Résistance ambiante Anode (Ohm) | B54: =(B52*350)/C49 -> 50.34076376 | C54: =B54 -> 50.34076376 | D54: =C54 -> 50.34076376
A55: Résistance ambiante équivalente 2 Anodes arrangées (Ohm) | B55: =B54/2 -> 25.17038188
A56: Résistance ambiante Cathode (Ohm) | B56: =(B53*350)/C49 -> 13.35956913 | C56: =B56 -> 13.35956913 | D56: =C56 -> 13.35956913
A57: Résistance équivalente Totale (Ohm) | B57: =B56+(B55) -> 38.52995101 | C57: =C56+(B55) -> 38.52995101 | D57: =D56+(B55) -> 38.52995101
B58: INFORMATIONS SUR LE CHAMP ELECTRIQUE / PUISSANCE REQUISE
B59: MINIMALE | C59: MOYENNE | D59: MAXIMALE
A60: Rayon d'ATTRACTION (cm) | B60: =F42*C46+F41 -> 56.10950578 | C60: =B41+B42*C46 -> 100.1177261 | D60: =G42*C46+G41 -> 144.1222906
A61: Rayon de TETANIE (cm) | B61: =F34*C46+F33 -> 16.46891193 | C61: =B34*C46+B33 -> 17.64340737 | D61: =G34*C46+G33 -> 18.81794226
A62: Puissance Requise (VA) | B62: =((($C$45^2)/B57))*(1/0.6) -> 1707.835461
A79: Tableaux des résistances des cathodes et des anodes
A80: Taille des Cathodes et la Résistance Equivalente mesurée à une conductivité ambiante de 350 µS.cm-1
A81: Référence Cathode | B81: Type de Cathode | C81: Dimension 1 cm) | D81: Dimension 2 (cm) | E81: Epaisseur du cordon/ Taille de la Maille (mm) | F81: Résistance mesurée en Ω
A82: A | B82: Cathode Héron Dream Electronique | C82: 4 tresses de 850 *10 sur une tige de métal | F82: 6.726921288
A83: B | B83: Cathode Martin Pêcheur Dream Electronique | E83: 3 | F83: 33.03808302
A84: C | B84: Cathode Cuivre ELT60 II Hans Grassl | C84: 210 | D84: 15 | E84: 3 | F84: 19.4907083
A85: D | B85: Cathode INOX LR-24 Smith Root | C85: 110 | E85: 5 | F85: 32.32036509
A86: E | B86: Bande de Cuivre 75*2,5 cm | C86: 75 | D86: 2.5 | E86: 3 | F86: 48
A87: F | B87: Bande de Cuivre 150*2,5 cm | C87: 150 | D87: 2.5 | E87: 3 | F87: 31
A88: G | B88: Bande de Cuivre 300*2,5 cm | C88: 300 | D88: 2.5 | E88: 3 | F88: 20
A89: H | B89: Cathode cuivre EL63II 5 mètres Hans Grassl | C89: 500 | D89: 2.5 | F89: 15.55702778
A90: I | B90: Maille d'Acier | C90: 25 | D90: 25 | E90: 13 | F90: 49
A91: J | B91: Maille d'Acier | C91: 50 | D91: 50 | E91: 13 | F91: 27
A92: K | B92: Maille d'Acier | C92: 75 | D92: 75 | E92: 13 | F92: 19
A93: L | B93: Maille d'Aluminium expansé | C93: 60 | D93: 55 | E93: 25.4 | F93: 26
A94: M | B94: Maille d'Aluminium perforé | C94: 29 | D94: 39 | F94: 35
A95: N | B95: Maille d'Aluminium perforé | C95: 16 | D95: 17 | F95: 60
A96: O | B96: Plaque d'Aluminium épaisse de 2 mm | C96: 30 | D96: 41 | F96: 34
A97: P | B97: Tôle perforée en Acier Inoxydable | C97: 50 | D97: 50 | E97: 6 | F97: 21
A98: Q | B98: Treillis d'Acier soudé | C98: 29 | D98: 40 | E98: 25.4 | F98: 34
A99: R | B99: Treillis d'Acier soudé | C99: 17 | D99: 17 | E99: 25.4 | F99: 64
A100: S | B100: Cable inox | C100: 110 | E100: 5 | F100: 40
A101: T | B101: 8 tresses de cuivre de 90*1 soudées sur une barre en cuivre | E101: 3 | F101: 20
A102: Résistances équivalentes Anodes pour une conductivité ambiante de 350 µS.cm-1
A103: Type d'anode | B103: Résistance mesurée en Ω
A104: Anode Martin Pêcheur (Dream Electronique) 35 cm aluminium | B104: 30.99619023 | C104: Si l'anode n'est pas dans la liste ci-contre :
A105: Anode LR-24 (Smith Root) 28 cm aluminium | B105: 37.09326131
A106: Anode ELT60II (Hans Grassl) 40 cm inox | B106: 27.56274472 | C106: Diamètre anode Da (mm) =
A107: Anode EL63II (Hans Grassl) 30 cm inox | B107: 31.01977771
A108: Anode INOX 20 cm | B108: 41.42431299 | C108: Résistance anode Ra (Ohm) à 350µS/cm
A109: Anode INOX 30 cm | B109: 37.64376653 | D109: (Beaumont et al., 2005)
A110: Anode INOX 40 cm | B110: 30.32563278
A111: Anode INOX 50 cm | B111: 25.34799978
A112: Anode canne anglaise 36 cm de long inox | B112: 30.55818191
B116: NON Portatif Courant Continu 2 Anodes
B120: Retour à la page précédente
B122: Retour à l'Accueil

Sheet Portatif DC (2)
A1: Paramètres du modèle : | J1: Paramètres du modèle :
A2: R²aj, (coefficient de détermination ajusté) | B2: 0.84 | J2: R²aj, (coefficient de détermination ajusté) | K2: 0.84
A3: Paramètre | B3: Valeur | C3: Ecart-type | D3: t de Student | E3: Pr > t | F3: Borne inférieure 95 % | G3: Borne supérieure 95 % | J3: Paramètre | K3: Valeur | L3: Ecart-type | M3: t de Student | N3: Pr > t | O3: Borne inférieure 95 % | P3: Borne supérieure 95 %
A4: Constante | B4: -17.637048 | C4: 7.684872 | D4: -2.295035 | E4: < 0,05 | F4: -56.147053 | G4: 20.872958 | H4: 0.8354569 | I4: 41 | J4: Constant | K4: 27.812945 | L4: 1.4362849 | M4: 19.3645 | N4: <0,001 | O4: 3.094 | Q4: 0.878045 | R4: 1975.175 | S4: 262
A5: D(0,1 V/cm) | B5: 1.846243 | C5: 0.129232 | D5: 14.286265 | E5: < 0,0001 | F5: 1.834257 | G5: 1.858229 | J5: Va | K5: 0.559154 | L5: 0.0139403 | M5: 40.11058 | N5: <0,001
A6: L'équation du modèle s'écrit : Va = 5,66 + 1,45 * D(0,1 V/cm) | J6: Duty cycle (%) | K6: -0.176936 | L6: 0.0183577 | M6: -9.63825 | N6: <0,001
B7: AVANT DE COMMENCER UNE PECHE | J7: Model equation: D(0,1 V,cm-1) = 24,81 + 0,56*Va - 0,18*Duty cycle +/- 37,75
B8: Rayon d'ATTRACTION (cm) | C8: 46
B9: Conductivité spécifique pour 25°C (µS/cm) | C9: 213
B10: Température (°C) | C10: 13.1
B11: Conductivité Ambiante (µS/cm²) | C11: =$C$9/(1.023^(25-$C$10)) -> 162.5023187
B12: Modèle Anode | C12: Anode LR-24 (Smith Root) 28 cm aluminium
B13: Modèle Cathode | C13: Cathode INOX LR-24 Smith Root
A14: Résistance anode (Ohm) à 350µS/cm | B14: =IF(C12=A87,B87, IF(C12=A88,B88, IF(C12=A89,B89, IF(C12=A90,B90, IF(C12=A91,B91, IF(C12=A92,B92, IF(C12=A93,B93,IF(C12=A94,B94,IF(C12=A95,B95,"X"))))))))) -> 37.09326131
A15: Résistance cathode (Ohm) à 350µS/cm | B15: =IF(C13=B65,F65,IF(C13=B66,F66,IF(C13=B67,F67,IF(C13=B68,F68,IF(C13=B69,F69,IF(C13=B70,F70,IF(C13=B71,F71,IF(C13=B72,F72,"X")))))))) -> 32.32036509
A16: Résistance ambiante Anode (Ohm) | B16: =(B14*350)/C11 -> 79.89203822
A17: Résistance ambiante Cathode (Ohm) | B17: =(B15*350)/C11 -> 69.61210073
A18: Résistance équivalente Totale (Ohm) | B18: =B16+B17 -> 149.5041389
A19: Tension appliquée à l'Anode (V) | B19: =F5*C8+F4 -> 28.228769 | C19: =B4+B5*C8 -> 67.29013 | D19: =G5*C8+G4 -> 106.351492
B20: REGLAGES DE LA TENSION / INFORMATIONS SUPPLEMENTAIRES
B21: MINIMALE | C21: MOYENNE | D21: MAXIMALE
A22: Tension à REGLER sur l'Appareil (V) | B22: =B19*(B18/B16) -> 52.8252614 | C22: =C19*(B18/B16) -> 125.9218462 | D22: =D19*(B18/B16) -> 199.0184328
A23: Rayon de TETANIE moyen (cm) | B23: =K35+K36*B19 -> 7.94463977 | C23: =K35+K36*C19 -> 9.706697764 | D23: =K35+K36*D19 -> 11.4687558
A24: Puissance Requise (VA) Thermique | B24: =(B22^2)/$B$18*(1/0.6) -> 31.10848371 | C24: =(C22^2)/$B$18*(1/0.6) -> 176.7655782 | D24: =(D22^2)/$B$18*(1/0.6) -> 441.5522859
A25: Puissance Requise (VA) Batterie | B25: =(B22^2)/$B$18 -> 18.66509022 | C25: =(C22^2)/$B$18 -> 106.0593469 | D25: =(D22^2)/$B$18 -> 264.9313715
A26: Charge électrique de la batterie (Ah) | B26: 7
A27: Tension fournie par la batterie (V) | B27: 24
A28: Temps de décharge pour 25% profondeur de décharge de la batterie (minutes) à ne pas dépasser | B28: =((B26*B27)/B25)*0.25*60 -> 135.011402 | C28: =((B26*B27)/C25)*0.25*60 -> 23.76028208 | D28: =((B26*B27)/D25)*0.25*60 -> 9.511897309
J32: Paramètres du modèle :
J33: R²aj, (coefficient de détermination ajusté) | K33: 0.17
J34: Paramètre | K34: Valeur | L34: Ecart-type | M34: t de Student | N34: Pr > t | O34: Borne inférieure 95 % | P34: Borne supérieure 95 %
J35: Constant | K35: 6.67124 | L35: 1.02303 | M35: 6.521 | N35: <0,001 | O35: =6.67124-1.96*1.02303 -> 4.6661012 | P35: =6.67124+1.96*1.02303 -> 8.6763788 | Q35: 0.17 | S35: 54
J36: Va | K36: 0.04511 | L36: 0.01326 | M36: 3.402 | N36: 0.00129 | O36: =0.04511-1.96*0.01326 -> 0.0191204 | P36: =0.04511+1.96*0.01326 -> 0.0710996
J37: L'équation du modèle s'écrit : D(1V/cm) = 6,671 + 0,045*Va
B39: RETROUVER LES CARACTERISTIQUES D'UNE PECHE PRECEDENTE
B40: Tension réglée sur l'appareil (V) | C40: 200
B41: Tension appliquée à l'Anode (V) | C41: =C40*(B49/B51) -> 122.8251009
B42: Conductivité spécifique pour 25°C (µS/cm) | C42: 213
B43: Température (°C) | C43: 13
B44: Conductivité Ambiante (µS/cm²) | C44: =$C$42/(1.023^(25-$C$43)) -> 162.1332166
B45: Modèle Anode | C45: Anode EL63II (Hans Grassl) 30 cm inox
B46: Modèle Cathode | C46: Cathode Cuivre ELT60 II Hans Grassl
A47: Résistance anode (Ohm) à 350µS/cm | B47: =IF(C45=A87,B87, IF(C45=A88,B88, IF(C45=A89,B89, IF(C45=A90,B90, IF(C45=A91,B91, IF(C45=A92,B92, IF(C45=A93,B93,IF(C45=A94,B94,IF(C45=A95,B95,"X"))))))))) -> 31.01977771
A48: Résistance cathode (Ohm) à 350µS/cm | B48: =IF(C46=B65,F65,IF(C46=B66,F66,IF(C46=B67,F67,IF(C46=B68,F68,IF(C46=B69,F69,IF(C46=B70,F70,IF(C46=B71,F71,IF(C46=B72,F72,"X")))))))) -> 19.4907083
A49: Résistance ambiante Anode (Ohm) | B49: =(B47*350)/C44 -> 66.96297295
A50: Résistance ambiante Cathode (Ohm) | B50: =(B48*350)/C44 -> 42.0749557
A51: Résistance équivalente Totale (Ohm) | B51: =B49+B50 -> 109.0379286
B52: INFORMATIONS SUR LE CHAMP ELECTRIQUE / PUISSANCE REQUISE
B53: MINIMALE | C53: MOYENNE | D53: MAXIMALE
A54: Rayon d'ATTRACTION (cm) | B54: =(K4-1.96*L4)+(K5-1.96*L5)*C41+(K6-1.96*L6)*100 -> 69.02831511 | C54: =K4+K5*C41+K6*100 -> 78.79749148 | D54: =(K4+1.96*L4)+(K5+1.96*L5)*C41+(K6+1.96*L6)*100 -> 88.56666784
A55: Rayon de TETANIE (cm) | B55: =O35+O36*C41 -> 7.01456626 | C55: =K35+K36*C41 -> 12.2118803 | D55: =P35+P36*C41 -> 17.40919435
A56: Puissance de sortie requise (W) | B56: =($C$40^2)/B51 -> 366.8448264
A57: Charge électrique de la batterie (Ah) | B57: 7
A58: Tension fournie par la batterie (V) | B58: 24
A59: Temps de décharge pour 25% profondeur de décharge de la batterie (minutes) à ne pas dépasser | B59: =((B57*B58)/B56)*0.25*60 -> 6.869389505
A62: Tableaux des résistances des cathodes et des anodes
A63: Taille des Cathodes et la Résistance Equivalente mesurée à une conductivité ambiante de 350 µS,cm-1
A64: Référence Cathode | B64: Type de Cathode | C64: Dimension 1 cm) | D64: Dimension 2 (cm) | E64: Epaisseur du cordon/ Taille de la Maille (mm) | F64: Résistance mesurée en Ω
A65: P | B65: Cathode Héron Dream Electronique | C65: 4 tresses de 850 *10 sur une tige de métal | F65: 6.726921288
A66: R | B66: Cathode Martin Pêcheur Dream Electronique | E66: 3 | F66: 33.03808302
A67: S | B67: Cathode Cuivre ELT60 II Hans Grassl | C67: 210 | D67: 15 | E67: 3 | F67: 19.4907083
A68: T | B68: Cathode INOX LR-24 Smith Root | C68: 110 | E68: 5 | F68: 32.32036509
A69: A | B69: Bande de Cuivre 75*2,5 cm | C69: 75 | D69: 2.5 | E69: 3 | F69: 48
A70: B | B70: Bande de Cuivre 150*2,5 cm | C70: 150 | D70: 2.5 | E70: 3 | F70: 31
A71: C | B71: Bande de Cuivre 300*2,5 cm | C71: 300 | D71: 2.5 | E71: 3 | F71: 20
A72: H | B72: Cathode cuivre EL63II 5 mètres | C72: 500 | D72: 2.5 | F72: 15.55702778
A73: D | B73: Maille d'Acier | C73: 25 | D73: 25 | E73: 13 | F73: 49
A74: E | B74: Maille d'Acier | C74: 50 | D74: 50 | E74: 13 | F74: 27
A75: F | B75: Maille d'Acier | C75: 75 | D75: 75 | E75: 13 | F75: 19
A76: G | B76: Maille d'Aluminium expansé | C76: 60 | D76: 55 | E76: 25.4 | F76: 26
A77: H | B77: Maille d'Aluminium perforé | C77: 29 | D77: 39 | F77: 35
A78: I | B78: Maille d'Aluminium perforé | C78: 16 | D78: 17 | F78: 60
A79: J | B79: Plaque d'Aluminium épaisse de 2 mm | C79: 30 | D79: 41 | F79: 34
A80: K | B80: Tôle perforée en Acier Inoxydable | C80: 50 | D80: 50 | E80: 6 | F80: 21
A81: L | B81: Treillis d'Acier soudé | C81: 29 | D81: 40 | E81: 25.4 | F81: 34
A82: M | B82: Treillis d'Acier soudé | C82: 17 | D82: 17 | E82: 25.4 | F82: 64
A83: N | B83: Cable inox | C83: 110 | E83: 5 | F83: 40
A84: O | B84: 8 tresses de cuivre de 90*1 soudées sur une barre en cuivre | E84: 3 | F84: 20
A85: Résistances équivalentes Anodes pour une conductivité ambiante de 350 µS,cm-1
A86: Type d'anode | B86: Résistance mesurée en Ω
A87: Anode Martin Pêcheur (Dream Electronique) 35 cm aluminium | B87: 30.99619023 | C87: Si l'anode n'est pas dans la liste ci-contre :
A88: Anode LR-24 (Smith Root) 28 cm aluminium | B88: 37.09326131
A89: Anode ELT60II (Hans Grassl) 40 cm inox | B89: 27.56274472 | C89: Diamètre anode Da (mm) =
A90: Anode EL63II (Hans Grassl) 30 cm inox | B90: 31.01977771
A91: Anode INOX 20 cm | B91: 41.42431299 | C91: Résistance anode Ra (Ohm) à 350µS/cm
A92: Anode INOX 30 cm | B92: 37.64376653 | D92: (Beaumont et al,, 2005)
A93: Anode INOX 40 cm | B93: 30.32563278
A94: Anode INOX 50 cm | B94: 25.34799978
A95: Anode canne anglaise 36 cm de long inox | B95: 30.55818191
B101: Portatif Courant Continu 1 Anode
B105: Retour à la page précédente
B107: Retour à l'Accueil

Sheet Portatif PDC (2)
A2: Paramètres du modèle :
A3: R²aj. (coefficient de détermination ajusté)
A4: Variable modélisée | B4: Valeur | C4: Erreur-standard | D4: t de Student | E4: Pr > t | F4: Borne de prédiction inférieure 95 % | G4: Borne de prédiction supérieure 95 % | H4: R² ajusté | I4: AIC | J4: Individus statistiques | K4: AIC | L4: Individus statistiques
A5: Constant | B5: 27.812945 | C5: 1.4362849 | D5: 19.3645 | E5: <0,001 | F5: 3.094 | H5: 0.878045 | I5: 1975.175 | J5: 262
A6: Va | B6: 0.559154 | C6: 0.0139403 | D6: 40.11058 | E6: <0,001
A7: Duty cycle (%) | B7: -0.176936 | C7: 0.0183577 | D7: -9.63825 | E7: <0,001
A8: Model equation: D(0,1 V,cm-1) = 24,81 + 0,56*Va - 0,18*Duty cycle +/- 37,75
B10: RETROUVER LES CARACTERISTIQUES D'UNE PECHE PRECEDENTE
B11: Tension réglée sur l'appareil (V) | C11: 200
B12: Tension appliquée (V) | C12: =C11*(C20/(C20+C21)) -> 96.81125015
B13: Conductivité spécifique pour 25°C (µS/cm) | C13: 213
B14: Température (°C) | C14: 12
B15: Conductivité Ambiante (µS/cm²) | C15: =$C$13/(1.023^(25-$C$14)) -> 158.4879928
B16: Modèle Anode | C16: Anode Martin Pêcheur (Dream Electronique) 35 cm aluminium
B17: Modèle Cathode | C17: Cathode Martin Pêcheur Dream Electronique
B18: Résistance anode (Ohm) à 350µS/cm | C18: =IF(C16=A68,B68, IF(C16=A69,B69, IF(C16=A70,B70, IF(C16=A71,B71, IF(C16=A72,B72, IF(C16=A73,B73, IF(C16=A74,B74, IF(C16=A75,B75, IF(C16=A76,B76,"X"))))))))) -> 30.99619023
B19: Résistance cathode (Ohm) à 350µS/cm | C19: =IF(C17=B46,F46,IF(C17=B47,F47,IF(C17=B48,F48,IF(C17=B49,F49,IF(C17=B50,F50,IF(C17=B51,F51,IF(C17=B52,F52,IF(C17=B53,F53,"X")))))))) -> 33.03808302
B20: Résistance ambiante Anode (Ohm) | C20: =(C18*350)/C15 -> 68.45103146
B21: Résistance ambiante Cathode (Ohm) | C21: =(C19*350)/C15 -> 72.96028459
B22: Résistance équivalente Totale (Ohm) | C22: =C20+C21 -> 141.4113161
B23: Rapport Cyclique (entre 10% et 50%max) | C23: 5.7
B24: INFORMATIONS SUR LE CHAMP ELECTRIQUE / PUISSANCE REQUISE
B25: MINIMALE | C25: MOYENNE | D25: MAXIMALE
A26: Rayon d'ATTRACTION (cm) | B26: =(B5-1.96*C5)+(B6-1.96*C6)*C12+C23*(B7-1.96*C7) -> 75.27142431 | C26: =B5+C12*B6+C23*B7 -> 80.93680757 | D26: =(B5+1.96*C5)+C12*(B6+1.96*C6)+C23*(B7+1.96*C7) -> 86.60219082
A27: Rayon de TETANIE (cm) | B27: =(B36-1.96*C36)+C12*(B37-1.96*C37)+C23*(B38-1.96*C38) -> 19.390586 | C27: =B36+C12*B37+C23*B38 -> 22.50741316 | D27: =(B36+1.96*C36)+C12*(B37+1.96*C37)+C23*(B38+1.96*C38) -> 25.62424031
A28: Puissance de sortie requise (W) | B28: =(C11^2/C22)*(C23/100) -> 16.12317927
A29: Charge électrique de la batterie (Ah) | B29: 4
A30: Tension fournie par la batterie (V) | B30: 24
A31: Temps de décharge pour 25% profondeur de décharge de la batterie (minutes) à ne pas dépasser | B31: =((B29*B30)/B28)*0.25*60 -> 89.31241014
A33: Paramètres du modèle :
A34: R²aj. (coefficient de détermination ajusté) | B34: 0.6960198364
A35: Variable modélisée | B35: Valeur | C35: Erreur-standard | D35: t de Student | E35: Pr > t | F35: Borne de prédiction inférieure 95 % | G35: Borne de prédiction supérieure 95 % | H35: R² ajusté | I35: AIC | J35: Individus statistiques | K35: AIC | L35: Individus statistiques
A36: Constant | B36: 6.753558 | C36: 0.8076176 | D36: 8.362321 | E36: <0,001 | F36: 1.519 | H36: 0.7243102 | I36: 1340.516 | J36: 221
A37: Va | B37: 0.164723 | C37: 0.0070645 | D37: 23.317094 | E37: <0,001
A38: Duty cycle (%) | B38: -0.033892 | C38: 0.0173118 | D38: -1.957744 | E38: 0.0515
A39: Model equation: D(0,5 V,cm-1) = 6,75 + 0,16 * Va - 0,034 *Duty cycle +/- 1,52
A43: Tableaux des résistances des cathodes et des anodes
A44: Taille des Cathodes et la Résistance Equivalente mesurée à une conductivité ambiante de 350 µS.cm-1
A45: Référence Cathode | B45: Type de Cathode | C45: Dimension 1 cm) | D45: Dimension 2 (cm) | E45: Epaisseur du cordon/ Taille de la Maille (mm) | F45: Résistance mesurée en Ω
A46: P | B46: Cathode Héron Dream Electronique | C46: 4 tresses de 850 *10 sur une tige de métal | F46: 6.726921288
A47: R | B47: Cathode Martin Pêcheur Dream Electronique | E47: 3 | F47: 33.03808302
A48: S | B48: Cathode Cuivre ELT60 II Hans Grassl | C48: 210 | D48: 15 | E48: 3 | F48: 19.4907083
A49: T | B49: Cathode INOX LR-24 Smith Root | C49: 110 | E49: 5 | F49: 32.32036509
A50: A | B50: Bande de Cuivre 75*2,5 cm | C50: 75 | D50: 2.5 | E50: 3 | F50: 48
A51: B | B51: Bande de Cuivre 150*2,5 cm | C51: 150 | D51: 2.5 | E51: 3 | F51: 31
A52: C | B52: Bande de Cuivre 300*2,5 cm | C52: 300 | D52: 2.5 | E52: 3 | F52: 20
A53: H | B53: Cathode cuivre EL63II 5 mètres | C53: 500 | D53: 2.5 | F53: 15.55702778
A54: D | B54: Maille d'Acier | C54: 25 | D54: 25 | E54: 13 | F54: 49
A55: E | B55: Maille d'Acier | C55: 50 | D55: 50 | E55: 13 | F55: 27
A56: F | B56: Maille d'Acier | C56: 75 | D56: 75 | E56: 13 | F56: 19
A57: G | B57: Maille d'Aluminium expansé | C57: 60 | D57: 55 | E57: 25.4 | F57: 26
A58: H | B58: Maille d'Aluminium perforé | C58: 29 | D58: 39 | F58: 35
A59: I | B59: Maille d'Aluminium perforé | C59: 16 | D59: 17 | F59: 60
A60: J | B60: Plaque d'Aluminium épaisse de 2 mm | C60: 30 | D60: 41 | F60: 34
A61: K | B61: Tôle perforée en Acier Inoxydable | C61: 50 | D61: 50 | E61: 6 | F61: 21
A62: L | B62: Treillis d'Acier soudé | C62: 29 | D62: 40 | E62: 25.4 | F62: 34
A63: M | B63: Treillis d'Acier soudé | C63: 17 | D63: 17 | E63: 25.4 | F63: 64
A64: N | B64: Cable inox | C64: 110 | E64: 5 | F64: 40
A65: O | B65: 8 tresses de cuivre de 90*1 soudées sur une barre en cuivre | E65: 3 | F65: 20
A66: Résistances équivalentes Anodes pour une conductivité ambiante de 350 µS.cm-1
A67: Type d'anode | B67: Résistance mesurée en Ω
A68: Anode Martin Pêcheur (Dream Electronique) 35 cm aluminium | B68: 30.99619023 | C68: Si l'anode n'est pas dans la liste ci-contre :
A69: Anode LR-24 (Smith Root) 28 cm aluminium | B69: 37.09326131
A70: Anode ELT60II (Hans Grassl) 40 cm inox | B70: 27.56274472 | C70: Diamètre anode Da (mm) =
A71: Anode EL63II (Hans Grassl) 30 cm inox | B71: 31.01977771
A72: Anode INOX 20 cm | B72: 41.42431299 | C72: Résistance anode Ra (Ohm) à 350µS/cm
A73: Anode INOX 30 cm | B73: 37.64376653 | D73: (Beaumont et al., 2005)
A74: Anode INOX 40 cm | B74: 30.32563278
A75: Anode INOX 50 cm | B75: 25.34799978
A76: Anode canne anglaise 36 cm de long inox | B76: 30.55818191
B81: Portatif Courant Continu Pulsé 1 Anode
B85: Retour à la page précédente
B87: Retour à l'Accueil

Sheet NON Portatif 1 Anode (2)
A1: Paramètres du modèle :
A2: R²aj. (coefficient de détermination ajusté) | B2: 0.81
A3: Paramètre | B3: Valeur | C3: Erreur standard | D3: t de Student | E3: Pr > t | F3: Borne inférieure 95 % | G3: Borne supérieure 95 %
A4: Constante | B4: 25.207209 | C4: 6.44118 | D4: 3.913446 | E4: < 0,0001 | F4: -31.73 | G4: 82.14 | H4: 0.8095876 | I4: 186
A5: D(0,1 V/cm) | B5: 1.169601 | C5: 0.041677 | D5: 28.063772 | E5: < 0,0001 | F5: 1.168 | G5: 1.172
A6: L'équation du modèle s'écrit : Va = 25,21 + 1,17 * D(0,1 V/cm)
B7: AVANT DE COMMENCER UNE PECHE
B8: Rayon d'ATTRACTION (cm) | C8: 150
B9: Conductivité spécifique pour 25°C (µS/cm) | C9: 240
B10: Température (°C) | C10: 16
B11: Conductivité Ambiante (µS/cm²) | C11: =C9/(1.023^(25-C10)) -> 195.5827455 | D11: =C9/(1.023^(25-C10)) -> 195.5827455
B12: Modèle Anode | C12: Anode Martin Pêcheur (Dream Electronique) 35 cm aluminium
B13: Modèle Cathode | C13: Cathode Héron Dream Electronique
A14: Résistance anode (Ohm) à 350µS/cm | B14: =IF(C12=A90,B90,IF(C12=A91,B91,IF(C12=A92,B92,IF(C12=A93,B93,IF(C12=A94,B94,IF(C12=A95,B95,IF(C12=A96,B96,IF(C12=A97,B97,IF(C12=A98,B98,"X"))))))))) -> 30.99619023 | C14: =B14 -> 30.99619023 | D14: =C14 -> 30.99619023
A15: Résistance cathode (Ohm) à 350µS/cm | B15: =IF(C13=B68,F68,IF(C13=B69,F69,IF(C13=B70,F70,IF(C13=B71,F71,IF(C13=B72,F72,IF(C13=B73,F73,IF(C13=B74,F74,IF(C13=B75,F75,"X")))))))) -> 6.726921288 | C15: =B15 -> 6.726921288 | D15: =C15 -> 6.726921288
A16: Résistance ambiante Anode (Ohm) | B16: =B14*350/C11 -> 55.46842361 | C16: =C14*350/C11 -> 55.46842361 | D16: =D14*350/D11 -> 55.46842361
A17: Résistance ambiante Cathode (Ohm) | B17: =B15*350/C11 -> 12.0379865 | C17: =C15*350/C11 -> 12.0379865 | D17: =D15*350/D11 -> 12.0379865
A18: Résistance équivalente Totale (Ohm) | B18: =B17+B16 -> 67.50641012 | C18: =C17+C16 -> 67.50641012 | D18: =D17+D16 -> 67.50641012
A19: Tension appliquée à l'anode (V) | B19: =F5*C8+F4 -> 143.47 | C19: =B4+B5*C8 -> 200.647359 | D19: =G5*C8+G4 -> 257.94
B20: REGLAGES DE LA TENSION / INFORMATIONS SUPPLEMENTAIRES
B21: MINIMALE | C21: MOYENNE | D21: MAXIMALE
A22: Tension à REGLER sur l'Appareil (V) | B22: =B19*(B18/B16) -> 174.6064523 | C22: =C19*(C18/C16) -> 244.192678 | D22: =D19*(D18/D16) -> 313.9192047
A23: Rayon de TETANIE moyen (cm) | B23: =B32+F32+B33*B19 -> 22.22413971 | C23: =B32+B33*C19 -> 25.15085458 | D23: =B32+B33*D19 -> 31.22232762
A24: Puissance Requise (VA) | B24: =(((B22^2)/B18))*(1/0.6) -> 752.7041535 | C24: =(((C22^2)/C18))*(1/0.6) -> 1472.207451 | D24: =(((D22^2)/D18))*(1/0.6) -> 2432.985423
A29: Paramètres du modèle :
A30: R²aj. (coefficient de détermination ajusté) | B30: 0.58
A31: Paramètre | B31: Valeur | C31: Erreur standard | D31: t de Student | E31: Pr > t | F31: Borne inférieure 95 % | G31: Borne supérieure 95 %
A32: Constant | B32: 3.887652 | C32: 1.1620564 | D32: 3.345494 | E32: 0.001 | F32: 3.1325414 | G32: 4.6427631 | H32: 0.5968952 | I32: 1197.849 | J32: 189
A33: Va | B33: 0.105973 | C33: 0.0063401 | D33: 16.714662 | E33: <0,001 | F33: 0.1027421 | G33: 0.1092042
A34: Model equation: D(1 V,cm-1) = 3,89 + 0,11 * Va
A38: Paramètres du modèle :
A39: R²aj. (coefficient de détermination ajusté) | B39: 0.81
A40: Paramètre | B40: Valeur | C40: Erreur standard | D40: t de Student | E40: Pr > t | F40: Borne inférieure 95 % | G40: Borne supérieure 95 %
A41: Constant | B41: 12.61 | C41: 3.56 | D41: 3.55 | E41: 0.001 | H41: 0.89 | I41: 168
A42: Va | B42: 0.7 | C42: 0.019 | D42: 36.35 | E42: <0,001
A43: Model equation: D(0.1 V.cm-1) = 12.84 + 0.68 * Va
B44: RETROUVER LES CARACTERISTIQUES D'UNE PECHE PRECEDENTE
B45: Tension réglée sur l'appareil (V) | C45: 200
B46: Tension appliquée à l'Anode (V) | C46: =C45*(B54/B56) -> 164.3352787
B47: Conductivité spécifique pour 25°C (µS/cm) | C47: 244
B48: Température (°C) | C48: 13
B49: Conductivité Ambiante (µS/cm²) | C49: =$C$47/(1.023^(25-$C$48)) -> 185.7300697
B50: Modèle Anode | C50: Anode Martin Pêcheur (Dream Electronique) 35 cm aluminium
B51: Modèle Cathode | C51: Cathode Héron Dream Electronique
A52: Résistance anode (Ohm) à 350µS/cm | B52: =IF(C50=A90,B90,IF(C50=A91,B91,IF(C50=A92,B92,IF(C50=A93,B93,IF(C50=A94,B94,IF(C50=A95,B95,IF(C50=A96,B96,IF(C50=A97,B97,IF(C50=A98,B98,"X"))))))))) -> 30.99619023
A53: Résistance cathode (Ohm) à 350µS/cm | B53: =IF(C51=B68,F68,IF(C51=B69,F69,IF(C51=B70,F70,IF(C51=B71,F71,IF(C51=B72,F72,IF(C51=B73,F73,IF(C51=B74,F74,IF(C51=B75,F75,"X")))))))) -> 6.726921288
A54: Résistance ambiante Anode (Ohm) | B54: =(B52*350)/C49 -> 58.41093257 | C54: =B54 -> 58.41093257 | D54: =C54 -> 58.41093257
A55: Résistance ambiante Cathode (Ohm) | B55: =(B53*350)/C49 -> 12.67658196 | C55: =B55 -> 12.67658196 | D55: =C55 -> 12.67658196
A56: Résistance équivalente Totale (Ohm) | B56: =B54+B55 -> 71.08751453 | C56: =C54+C55 -> 71.08751453 | D56: =D54+D55 -> 71.08751453
B57: INFORMATIONS SUR LE CHAMP ELECTRIQUE / PUISSANCE REQUISE
B58: MINIMALE | C58: MOYENNE | D58: MAXIMALE
A59: Rayon d'ATTRACTION (cm) | B59: =(B42-1.96*C42)*C46+(B41-1.96*C41) -> 114.5472493 | C59: =B42*C46+B41 -> 127.6446951 | D59: =(B42+1.96*C42)*C46+(B41+1.96*C41) -> 140.7421409
A60: Rayon de TETANIE (cm) | B60: =(B33-1.96*C33)*C46+(B32-1.96*C32) -> 16.98299583 | C60: =B33*C46+B32 -> 21.30275449 | D60: =(B33+1.96*C33)*C46+(B32+1.96*C32) -> 25.62251315
A61: Puissance de sortie requise (W) | B61: =(((C45^2)/B56)) -> 562.6867146
A65: Tableaux des résistances des cathodes et des anodes
A66: Taille des Cathodes et la Résistance Equivalente mesurée à une conductivité ambiante de 350 µS.cm-1
A67: Référence Cathode | B67: Type de Cathode | C67: Dimension 1 cm) | D67: Dimension 2 (cm) | E67: Epaisseur du cordon/ Taille de la Maille (mm) | F67: Résistance mesurée en Ω
A68: A | B68: Cathode Héron Dream Electronique | C68: 4 tresses de 850 *10 sur une tige de métal | F68: 6.726921288
A69: B | B69: Cathode Martin Pêcheur Dream Electronique | E69: 3 | F69: 33.03808302
A70: C | B70: Cathode Cuivre ELT60 II Hans Grassl | C70: 210 | D70: 15 | E70: 3 | F70: 19.4907083
A71: D | B71: Cathode INOX LR-24 Smith Root | C71: 110 | E71: 5 | F71: 32.32036509
A72: E | B72: Bande de Cuivre 75*2,5 cm | C72: 75 | D72: 2.5 | E72: 3 | F72: 48
A73: F | B73: Bande de Cuivre 150*2,5 cm | C73: 150 | D73: 2.5 | E73: 3 | F73: 31
A74: G | B74: Bande de Cuivre 300*2,5 cm | C74: 300 | D74: 2.5 | E74: 3 | F74: 20
A75: H | B75: Cathode cuivre EL63II 5 mètres Hans Grassl | C75: 500 | D75: 2.5 | F75: 15.55702778
A76: I | B76: Maille d'Acier | C76: 25 | D76: 25 | E76: 13 | F76: 49
A77: J | B77: Maille d'Acier | C77: 50 | D77: 50 | E77: 13 | F77: 27
A78: K | B78: Maille d'Acier | C78: 75 | D78: 75 | E78: 13 | F78: 19
A79: L | B79: Maille d'Aluminium expansé | C79: 60 | D79: 55 | E79: 25.4 | F79: 26
A80: M | B80: Maille d'Aluminium perforé | C80: 29 | D80: 39 | F80: 35
A81: N | B81: Maille d'Aluminium perforé | C81: 16 | D81: 17 | F81: 60
A82: O | B82: Plaque d'Aluminium épaisse de 2 mm | C82: 30 | D82: 41 | F82: 34
A83: P | B83: Tôle perforée en Acier Inoxydable | C83: 50 | D83: 50 | E83: 6 | F83: 21
A84: Q | B84: Treillis d'Acier soudé | C84: 29 | D84: 40 | E84: 25.4 | F84: 34
A85: R | B85: Treillis d'Acier soudé | C85: 17 | D85: 17 | E85: 25.4 | F85: 64
A86: S | B86: Cable inox | C86: 110 | E86: 5 | F86: 40
A87: T | B87: 8 tresses de cuivre de 90*1 soudées sur une barre en cuivre | E87: 3 | F87: 20
A88: Résistances équivalentes Anodes pour une conductivité ambiante de 350 µS.cm-1
A89: Type d'anode | B89: Résistance mesurée en Ω
A90: Anode Martin Pêcheur (Dream Electronique) 35 cm aluminium | B90: 30.99619023 | C90: Si l'anode n'est pas dans la liste ci-contre :
A91: Anode LR-24 (Smith Root) 28 cm aluminium | B91: 37.09326131
A92: Anode ELT60II (Hans Grassl) 40 cm inox | B92: 27.56274472 | C92: Diamètre anode Da (mm) =
A93: Anode EL63II (Hans Grassl) 30 cm inox | B93: 31.01977771
A94: Anode INOX 20 cm | B94: 41.42431299 | C94: Résistance anode Ra (Ohm) à 350µS/cm
A95: Anode INOX 30 cm | B95: 37.64376653 | D95: (Beaumont et al., 2005)
A96: Anode INOX 40 cm | B96: 30.32563278
A97: Anode INOX 50 cm | B97: 25.34799978
A98: Anode canne anglaise 36 cm de long inox | B98: 30.55818191
B103: NON Portatif Courant Continu 1 Anode
B107: Retour à la page précédente
B109: Retour à l'Accueil

Sheet NON Portatif 2 Anodes (2)
A1: Paramètres du modèle :
A2: R²aj. (coefficient de détermination ajusté) | B2: 0.81
A3: Paramètre | B3: Valeur | C3: Erreur standard | D3: t de Student | E3: Pr > t | F3: Borne inférieure 95 % | G3: Borne supérieure 95 %
A4: Constante | B4: 25.207209 | C4: 6.44118 | D4: 3.913446 | E4: < 0,0001 | F4: -31.73 | G4: 82.14 | H4: 0.8095876 | I4: 186
A5: D(0,1 V/cm) | B5: 1.169601 | C5: 0.041677 | D5: 28.063772 | E5: < 0,0001 | F5: 1.168 | G5: 1.172
A6: L'équation du modèle s'écrit : Va = 25,21 + 1,17 * D(0,1 V/cm)
B7: AVANT DE COMMENCER UNE PECHE
B8: Rayon d'ATTRACTION (cm) | C8: 100
B9: Conductivité spécifique pour 25°C (µS/cm) | C9: 231
B10: Température (°C) | C10: 13.1
B11: Conductivité Ambiante (µS/cm²) | C11: =C9/(1.023^(25-C10)) -> 176.234909 | D11: =C9/(1.023^(25-C10)) -> 176.234909
B12: Modèle Anode | C12: Anode INOX 20 cm
B13: Modèle Cathode | C13: Bande de Cuivre 150*2,5 cm
A14: Résistance anode (Ohm) à 350µS/cm | B14: =IF(C12=A104,B104,IF(C12=A105,B105,IF(C12=A108,B108,IF(C12=A109,B109,IF(C12=A110,B110,IF(C12=A111,B111,IF(C12=A106,B106,IF(C12=A107,B107,IF(C12=A112,B112,"X"))))))))) -> 41.42431299 | C14: =B14 -> 41.42431299 | D14: =C14 -> 41.42431299
A15: Résistance cathode (Ohm) à 350µS/cm | B15: =IF(C13=B82,F82,IF(C13=B83,F83,IF(C13=B84,F84,IF(C13=B85,F85,IF(C13=B86,F86,IF(C13=B87,F87,IF(C13=B88,F88,IF(C13=B89,F89,"X")))))))) -> 31 | C15: =B15 -> 31 | D15: =C15 -> 31
A16: Résistance ambiante Anode (Ohm) | B16: =B14*350/C11 -> 82.26809107
A17: Résistance ambiante équivalente 2 Anodes arrangées (Ohm) | B17: =B16/2 -> 41.13404553
A18: Résistance ambiante Cathode (Ohm) | B18: =B15*350/C11 -> 61.56555508 | C18: =B15*350/C11 -> 61.56555508 | D18: =B15*350/D11 -> 61.56555508
A19: Résistance équivalente Totale (Ohm) | B19: =B18+(B17) -> 102.6996006 | C19: =B19 -> 102.6996006 | D19: =B19 -> 102.6996006
A20: Tension appliquée à l'anode (V) | B20: =F5*C8+F4 -> 85.07 | C20: =B5*C8+B4 -> 142.167309 | D20: =G5*C8+G4 -> 199.34
B21: REGLAGES DE LA TENSION / INFORMATIONS SUPPLEMENTAIRES
B22: MINIMALE | C22: MOYENNE | D22: MAXIMALE
A23: Tension à REGLER sur l'Appareil (V) | B23: =B20*(B19/B17) -> 212.3947429 | C23: =C20*(C19/B17) -> 354.9499123 | D23: =D20*(D19/B17) -> 497.6932884
A24: Rayon de TETANIE moyen (cm) | B24: =B34*B20+ B33 -> 12.90277511 | C24: =B33+B34*C20 -> 18.95354824 | D24: =B34*D20+B33 -> 25.01230982
A25: Puissance Requise (VA) | B25: =((($B$23^2)/(B17+B18)))*(1/0.6) -> 732.0951352 | C25: =((($C$23^2)/(B17+C18)))*(1/0.6) -> 2044.627235 | D25: =((($D$23^2)/(B17+D18)))*(1/0.6) -> 4019.79183
A30: Paramètres du modèle :
A31: R²aj. (coefficient de détermination ajusté) | B31: 0.58
A32: Paramètre | B32: Valeur | C32: Erreur standard | D32: t de Student | E32: Pr > t | F32: Borne inférieure 95 % | G32: Borne supérieure 95 %
A33: Constant | B33: 3.887652 | C33: 1.1620564 | D33: 3.345494 | E33: 0.001 | F33: 3.1325414 | G33: 4.6427631 | H33: 0.5968952 | I33: 1197.849 | J33: 189
A34: Va | B34: 0.105973 | C34: 0.0063401 | D34: 16.714662 | E34: <0,001 | F34: 0.1027421 | G34: 0.1092042
A35: Model equation: D(1 V,cm-1) = 3,89 + 0,11 * Va
A38: Paramètres du modèle :
A39: R²aj. (coefficient de détermination ajusté) | B39: 0.81
A40: Paramètre | B40: Valeur | C40: Erreur standard | D40: t de Student | E40: Pr > t | F40: Borne inférieure 95 % | G40: Borne supérieure 95 %
A41: Constant | B41: 12.61 | C41: 3.56 | D41: 3.55 | E41: 0.001 | H41: 0.89 | I41: 168 | J41: 186
A42: Va | B42: 0.7 | C42: 0.019 | D42: 36.35 | E42: <0,001
A43: Model equation: D(0.1 V.cm-1) = 12.84 + 0.68 * Va
B44: RETROUVER LES CARACTERISTIQUES D'UNE PECHE PRECEDENTE
B45: Tension réglée sur l'appareil (V) | C45: 200
B46: Tension appliquée à l'Anode (V) | C46: =C45*(B55/B57) -> 139.4653199
B47: Conductivité spécifique pour 25°C (µS/cm) | C47: 244
B48: Température (°C) | C48: 13
B49: Conductivité Ambiante (µS/cm²) | C49: =$C$47/(1.023^(25-$C$48)) -> 185.7300697
B50: Modèle Anode | C50: Anode Martin Pêcheur (Dream Electronique) 35 cm aluminium
B51: Modèle Cathode | C51: Cathode Héron Dream Electronique
A52: Résistance anode (Ohm) à 350µS/cm | B52: =IF(C50=A104,B104,IF(C50=A105,B105,IF(C50=A108,B108,IF(C50=A109,B109,IF(C50=A110,B110,IF(C50=A111,B111,IF(C50=A106,B106,IF(C12=A107,B107,IF(C12=A112,B112,"X"))))))))) -> 30.99619023
A53: Résistance cathode (Ohm) à 350µS/cm | B53: =IF(C51=B82,F82,IF(C51=B83,F83,IF(C51=B84,F84,IF(C51=B85,F85,IF(C51=B86,F86,IF(C51=B87,F87,IF(C51=B88,F88,IF(C51=B89,F89,"X")))))))) -> 6.726921288 | C53: =B53 -> 6.726921288 | D53: =C53 -> 6.726921288
A54: Résistance ambiante Anode (Ohm) | B54: =(B52*350)/C49 -> 58.41093257 | C54: =B54 -> 58.41093257 | D54: =C54 -> 58.41093257
A55: Résistance ambiante équivalente 2 Anodes arrangées (Ohm) | B55: =B54/2 -> 29.20546629
A56: Résistance ambiante Cathode (Ohm) | B56: =(B53*350)/C49 -> 12.67658196 | C56: =B56 -> 12.67658196 | D56: =C56 -> 12.67658196
A57: Résistance équivalente Totale (Ohm) | B57: =B56+(B55) -> 41.88204824 | C57: =C56+(B55) -> 41.88204824 | D57: =D56+(B55) -> 41.88204824
B58: INFORMATIONS SUR LE CHAMP ELECTRIQUE / PUISSANCE REQUISE
B59: MINIMALE | C59: MOYENNE | D59: MAXIMALE
A60: Rayon d'ATTRACTION (cm) | B60: =(B42-1.96*C42)*C46+(B41-1.96*C41) -> 98.06443543 | C60: =B41+B42*C46 -> 110.2357239 | D60: =(B42+1.96*C42)*C46+(B41+1.96*C41) -> 122.4070125
A61: Rayon de TETANIE (cm) | B61: =F34*C46+F33 -> 17.46150125 | C61: =B34*C46+B33 -> 18.66721035 | D61: =G34*C46+G33 -> 19.87296179
A62: Puissance de sortie requise (W) | B62: =((($C$45^2)/B57)) -> 955.0631279
A79: Tableaux des résistances des cathodes et des anodes
A80: Taille des Cathodes et la Résistance Equivalente mesurée à une conductivité ambiante de 350 µS.cm-1
A81: Référence Cathode | B81: Type de Cathode | C81: Dimension 1 cm) | D81: Dimension 2 (cm) | E81: Epaisseur du cordon/ Taille de la Maille (mm) | F81: Résistance mesurée en Ω
A82: A | B82: Cathode Héron Dream Electronique | C82: 4 tresses de 850 *10 sur une tige de métal | F82: 6.726921288
A83: B | B83: Cathode Martin Pêcheur Dream Electronique | E83: 3 | F83: 33.03808302
A84: C | B84: Cathode Cuivre ELT60 II Hans Grassl | C84: 210 | D84: 15 | E84: 3 | F84: 19.4907083
A85: D | B85: Cathode INOX LR-24 Smith Root | C85: 110 | E85: 5 | F85: 32.32036509
A86: E | B86: Bande de Cuivre 75*2,5 cm | C86: 75 | D86: 2.5 | E86: 3 | F86: 48
A87: F | B87: Bande de Cuivre 150*2,5 cm | C87: 150 | D87: 2.5 | E87: 3 | F87: 31
A88: G | B88: Bande de Cuivre 300*2,5 cm | C88: 300 | D88: 2.5 | E88: 3 | F88: 20
A89: H | B89: Cathode cuivre EL63II 5 mètres Hans Grassl | C89: 500 | D89: 2.5 | F89: 15.55702778
A90: I | B90: Maille d'Acier | C90: 25 | D90: 25 | E90: 13 | F90: 49
A91: J | B91: Maille d'Acier | C91: 50 | D91: 50 | E91: 13 | F91: 27
A92: K | B92: Maille d'Acier | C92: 75 | D92: 75 | E92: 13 | F92: 19
A93: L | B93: Maille d'Aluminium expansé | C93: 60 | D93: 55 | E93: 25.4 | F93: 26
A94: M | B94: Maille d'Aluminium perforé | C94: 29 | D94: 39 | F94: 35
A95: N | B95: Maille d'Aluminium perforé | C95: 16 | D95: 17 | F95: 60
A96: O | B96: Plaque d'Aluminium épaisse de 2 mm | C96: 30 | D96: 41 | F96: 34
A97: P | B97: Tôle perforée en Acier Inoxydable | C97: 50 | D97: 50 | E97: 6 | F97: 21
A98: Q | B98: Treillis d'Acier soudé | C98: 29 | D98: 40 | E98: 25.4 | F98: 34
A99: R | B99: Treillis d'Acier soudé | C99: 17 | D99: 17 | E99: 25.4 | F99: 64
A100: S | B100: Cable inox | C100: 110 | E100: 5 | F100: 40
A101: T | B101: 8 tresses de cuivre de 90*1 soudées sur une barre en cuivre | E101: 3 | F101: 20
A102: Résistances équivalentes Anodes pour une conductivité ambiante de 350 µS.cm-1
A103: Type d'anode | B103: Résistance mesurée en Ω
A104: Anode Martin Pêcheur (Dream Electronique) 35 cm aluminium | B104: 30.99619023 | C104: Si l'anode n'est pas dans la liste ci-contre :
A105: Anode LR-24 (Smith Root) 28 cm aluminium | B105: 37.09326131
A106: Anode ELT60II (Hans Grassl) 40 cm inox | B106: 27.56274472 | C106: Diamètre anode Da (mm) =
A107: Anode EL63II (Hans Grassl) 30 cm inox | B107: 31.01977771
A108: Anode INOX 20 cm | B108: 41.42431299 | C108: Résistance anode Ra (Ohm) à 350µS/cm
A109: Anode INOX 30 cm | B109: 37.64376653 | D109: (Beaumont et al., 2005)
A110: Anode INOX 40 cm | B110: 30.32563278
A111: Anode INOX 50 cm | B111: 25.34799978
A112: Anode canne anglaise 36 cm de long inox | B112: 30.55818191
B116: NON Portatif Courant Continu 2 Anodes
B120: Retour à la page précédente
B122: Retour à l'Accueil

Sheet Guide avant de pêcher
I7: Retour à la page précédente
J9: Retour à l'Accueil

Sheet Guide retrouver les caractérist
I7: Retour à la page précédente
J9: Retour à l'Accueil

Sheet Guide achat
I7: Retour à la page précédente
J9: Retour à l'Accueil
C43: Retour à la page précédente
D45: Retour à l'Accueil

Sheet Fiches techniques engin des pêc
M1: Retour à l'Accueil
M33: Retour à l'Accueil
M67: Retour à l'Accueil
M99: Retour à l'Accueil
M133: Retour à l'Accueil

Sheet Achat portatif DC
A1: Paramètres du modèle : | B1: 0.91
A2: R²aj. (coefficient de détermination ajusté)
A3: Paramètre | B3: Valeur | C3: Ecart-type | D3: t de Student | E3: Pr > t | F3: Borne inférieure 95 % | G3: Borne supérieure 95 %
A4: Constant | B4: -34.45222 | C4: 3.540547 | D4: -9.73076 | E4: <0,001 | F4: 5.75 | H4: 0.8596504 | I4: 2275.619 | J4: 262
A5: D(0,1 V,cm-1) | B5: 1.60701 | C5: 0.040932 | D5: 39.26009 | E5: <0,001
A6: Duty cycle (%) | B6: 0.26811 | C6: 0.034723 | D6: 7.72149 | E6: <0,001
A7: Model equation: Va = -34.45+ 1.61 * D(0.1 V.cm-1)+0.27* Duty cycle +/- 5.75
A9: Conseils avant l'achat d'un matériel portatif fournissant du courant continu
A11: Conditions environnementales de pêche
A12: Rayon d'ATTRACTION (cm) | C12: Conductivité spécifique pour 25°C (µS/cm) | E12: Température (°C)
A13: Minimum | B13: Maximum | C13: Minimum | D13: Maximum | E13: Minimum | F13: Maximum
A14: 80 | B14: 300 | C14: 180 | D14: 500 | E14: 4 | F14: 20
B17: Configuration de l'appareil de pêche sucseptible d'être acheté
B18: Modèle Anode | D18: Modèle Cathode
B19: Anode INOX 30 cm | D19: Bande de Cuivre 300*2,5 cm
B20: Tensions réglables | D20: Si l'engin est alimenté par une batterie
B21: Minimum | C21: Maximum | D21: Charge électrique de la batterie (Ah) | E21: Tension fournie par la batterie (V)
B22: 50 | C22: 530 | D22: 7 | E22: 24
B23: Puissance de sortie de l'engin susceptible d'être acheté (W)
B24: 1300
B26: Compatibilité avec les conditions de travail voulues
A30: MINIMUM | C30: MAXIMUM
A31: Conductivité Ambiante (µS/cm²) | B31: =$C$14/(1.023^(25-$E$14)) -> 111.656548 | C31: Conductivité Ambiante (µS/cm²) | D31: =$D$14/(1.023^(25-$F$14)) -> 446.2639814
A32: Résistance anode (Ohm) à 350µS/cm | B32: =IF(B19=A116,B116, IF(B19=A117,B117, IF(B19=A118,B118, IF(B19=A119,B119, IF(B19=A120,B120, IF(B19=A121,B121, IF(B19=A122,B122,IF(B19=A123,B123,IF(B19=A124,B124,"X"))))))))) -> 37.64376653 | C32: Résistance anode (Ohm) à 350µS/cm | D32: =IF(B19=A116,B116, IF(B19=A117,B117, IF(B19=A118,B118, IF(B19=A119,B119, IF(B19=A120,B120, IF(B19=A121,B121, IF(B19=A122,B122,IF(B19=A123,B123,IF(B19=A124,B124,"X"))))))))) -> 37.64376653
A33: Résistance cathode (Ohm) à 350µS/cm | B33: =IF(D19=B94,F94,IF(D19=B95,F95,IF(D19=B96,F96,IF(D19=B97,F97,IF(D19=B98,F98,IF(D19=B99,F99,IF(D19=B100,F100,IF(D19=B101,F101,"X")))))))) -> 20 | C33: Résistance cathode (Ohm) à 350µS/cm | D33: =IF(D19=B94,F94,IF(D19=B95,F95,IF(D19=B96,F96,IF(D19=B97,F97,IF(D19=B98,F98,IF(D19=B99,F99,IF(D19=B100,F100,IF(D19=B101,F101,"X")))))))) -> 20
A34: Résistance ambiante Anode (Ohm) | B34: =(B32*350)/B31 -> 117.9986173 | C34: Résistance ambiante Anode (Ohm) | D34: =(D32*350)/D31 -> 29.52359776
A35: Résistance ambiante Cathode (Ohm) | B35: =(B33*350)/B31 -> 62.69224799 | C35: Résistance ambiante Cathode (Ohm) | D35: =(D33*350)/D31 -> 15.68578306
A36: Résistance équivalente Totale (Ohm) | B36: =B34+B35 -> 180.6908653 | C36: Résistance équivalente Totale (Ohm) | D36: =D34+D35 -> 45.20938082
A37: Tension moyenne appliquée à l'Anode (V) | B37: =B4+B5*A14+B6*100 -> 120.91958 | D37: =B4+B5*B14+B6*100 -> 474.46178
B38: Tension moyenne à REGLER sur l'Appareil (V)
B39: Minimum | C39: Maximum
B40: =B37*($B$36/$B$34) -> 185.1637251 | C40: =D37*($D$36/$D$34) -> 726.5416454
A41: Compatible (oui/non) | B41: =IF(B22<B40, "OUI", IF(B22=B40, "OUI", "NON")) -> OUI | C41: =IF(C22>C40, "OUI", IF(C22=C40, "OUI", "NON")) -> NON
B42: Puissance de sortie requise (W) | D42: Si l'engin est alimenté par une Batterie. Temps de décharge pour 25% profondeur de décharge de la batterie (minutes) à ne pas dépasser
B43: Minimum | C43: Maximum | D43: Maximum | E43: Minimum
B44: =(B40^2/B36) -> 189.7473071 | C44: =(C40^2/D36) -> 11675.95647 | D44: =((D22*E22)/B44)*0.25*60 -> 13.28082089 | E44: =((D22*E22)/C44)*0.25*60 -> 0.2158281428
A45: Compatible (oui/non) | B45: =IF(B24>B44, "OUI", IF(B24=B44, "OUI", "NON")) -> OUI | C45: =IF(B24>C44, "OUI", IF(B24=C44, "OUI", "NON")) -> NON
A91: Tableaux des résistances des cathodes et des anodes
A92: Taille des Cathodes et la Résistance Equivalente mesurée à une conductivité ambiante de 350 µS.cm-1
A93: Référence Cathode | B93: Type de Cathode | C93: Dimension 1 cm) | D93: Dimension 2 (cm) | E93: Epaisseur du cordon/ Taille de la Maille (mm) | F93: Résistance mesurée en Ω
A94: P | B94: Cathode Héron Dream Electronique | C94: 4 tresses de 850 *10 sur une tige de métal | F94: 6.726921288
A95: R | B95: Cathode Martin Pêcheur Dream Electronique | E95: 3 | F95: 33.03808302
A96: S | B96: Cathode Cuivre ELT60 II Hans Grassl | C96: 210 | D96: 15 | E96: 3 | F96: 19.4907083
A97: T | B97: Cathode INOX LR-24 Smith Root | C97: 110 | E97: 5 | F97: 32.32036509
A98: A | B98: Bande de Cuivre 75*2,5 cm | C98: 75 | D98: 2.5 | E98: 3 | F98: 48
A99: B | B99: Bande de Cuivre 150*2,5 cm | C99: 150 | D99: 2.5 | E99: 3 | F99: 31
A100: C | B100: Bande de Cuivre 300*2,5 cm | C100: 300 | D100: 2.5 | E100: 3 | F100: 20
A101: H | B101: Cathode cuivre EL63II 5 mètres | C101: 500 | D101: 2.5 | F101: 15.55702778
A102: D | B102: Maille d'Acier | C102: 25 | D102: 25 | E102: 13 | F102: 49
A103: E | B103: Maille d'Acier | C103: 50 | D103: 50 | E103: 13 | F103: 27
A104: F | B104: Maille d'Acier | C104: 75 | D104: 75 | E104: 13 | F104: 19
A105: G | B105: Maille d'Aluminium expansé | C105: 60 | D105: 55 | E105: 25.4 | F105: 26
A106: H | B106: Maille d'Aluminium perforé | C106: 29 | D106: 39 | F106: 35
A107: I | B107: Maille d'Aluminium perforé | C107: 16 | D107: 17 | F107: 60
A108: J | B108: Plaque d'Aluminium épaisse de 2 mm | C108: 30 | D108: 41 | F108: 34
A109: K | B109: Tôle perforée en Acier Inoxydable | C109: 50 | D109: 50 | E109: 6 | F109: 21
A110: L | B110: Treillis d'Acier soudé | C110: 29 | D110: 40 | E110: 25.4 | F110: 34
A111: M | B111: Treillis d'Acier soudé | C111: 17 | D111: 17 | E111: 25.4 | F111: 64
A112: N | B112: Cable inox | C112: 110 | E112: 5 | F112: 40
A113: O | B113: 8 tresses de cuivre de 90*1 soudées sur une barre en cuivre | E113: 3 | F113: 20
A114: Résistances équivalentes Anodes pour une conductivité ambiante de 350 µS.cm-1
A115: Type d'anode | B115: Résistance mesurée en Ω
A116: Anode Martin Pêcheur (Dream Electronique) 35 cm aluminium | B116: 30.99619023 | C116: Si l'anode n'est pas dans la liste ci-contre :
A117: Anode LR-24 (Smith Root) 28 cm aluminium | B117: 37.09326131
A118: Anode ELT60II (Hans Grassl) 40 cm inox | B118: 27.56274472 | C118: Diamètre anode Da (mm) =
A119: Anode EL63II (Hans Grassl) 30 cm inox | B119: 31.01977771
A120: Anode INOX 20 cm | B120: 41.42431299 | C120: Résistance anode Ra (Ohm) à 350µS/cm
A121: Anode INOX 30 cm | B121: 37.64376653 | D121: (Beaumont et al., 2005)
A122: Anode INOX 40 cm | B122: 30.32563278
A123: Anode INOX 50 cm | B123: 25.34799978
A124: Anode canne anglaise 36 cm de long inox | B124: 30.55818191
C130: Retour au choix du type d'appareil
C132: Retour à l'Accueil

Sheet Achat portatif PDC
A1: Paramètres du modèle : | B1: 0.91
A2: R²aj. (coefficient de détermination ajusté)
A3: Variable modélisée | B3: Valeur | C3: Erreur-standard | D3: t de Student | E3: Pr > t | F3: Borne de prédiction inférieure 95 % | G3: Borne de prédiction supérieure 95 % | H3: R² ajusté | I3: AIC | J3: Individus statistiques | K3: AIC | L3: Individus statistiques
A4: Constant | B4: -34.45222 | C4: 3.540547 | D4: -9.73076 | E4: <0,001 | F4: 5.75 | H4: 0.8596504 | I4: 2275.619 | J4: 262 | K4: 1718.77 | L4: 221
A5: D(0,1 V,cm-1) | B5: 1.60701 | C5: 0.040932 | D5: 39.26009 | E5: <0,001
A6: Duty cycle (%) | B6: 0.26811 | C6: 0.034723 | D6: 7.72149 | E6: <0,001
A7: Model equation: Va = -34,45+ 1,61 * D(0,1 V,cm-1)+0,27* Duty cycle +/- 5,75
A9: Conseils avant l'achat d'un matériel portatif fournissant du courant continu pulsé
A11: Conditions environnementales de pêche
A12: Rayon d'ATTRACTION (cm) | C12: Conductivité spécifique pour 25°C (µS/cm) | E12: Température (°C)
A13: Minimum | B13: Maximum | C13: Minimum | D13: Maximum | E13: Minimum | F13: Maximum
A14: 100 | B14: 150 | C14: 200 | D14: 500 | E14: 10 | F14: 25
B17: Configuration de l'appareil de pêche voulu
B18: Modèle Anode | D18: Modèle Cathode
B19: Anode Martin Pêcheur (Dream Electronique) 35 cm aluminium | D19: Cathode Martin Pêcheur Dream Electronique
B20: Puissance de sortie de l'engin (W) | C20: Rapport Cyclique en % (entre 10% et 50 %)
B21: 240 | C21: 25
B22: Tensions réglables | D22: Si l'engin est alimenté par une batterie
B23: Minimum | C23: Maximum | D23: Charge électrique de la batterie (Ah) | E23: Tension fournie par la batterie (V)
B24: 70 | C24: 500 | D24: 7 | E24: 24
B26: Compatibilité avec les conditions de travail voulues
A30: MINIMUM | C30: MAXIMUM
A31: Conductivité Ambiante (µS/cm²) | B31: =$C$14/(1.023^(25-$E$14)) -> 142.1986555 | C31: Conductivité Ambiante (µS/cm²) | D31: =$D$14/(1.023^(25-$F$14)) -> 500
A32: Résistance anode (Ohm) à 350µS/cm | B32: =IF(B19=A116,B116, IF(B19=A117,B117, IF(B19=A118,B118, IF(B19=A119,B119, IF(B19=A120,B120, IF(B19=A121,B121, IF(B19=A122,B122,IF(B19=A123,B123,IF(B19=A124,B124,"X"))))))))) -> 30.99619023 | C32: Résistance anode (Ohm) à 350µS/cm | D32: =IF(B19=A116,B116, IF(B19=A117,B117, IF(B19=A118,B118, IF(B19=A119,B119, IF(B19=A120,B120, IF(B19=A121,B121, IF(B19=A122,B122,IF(B19=A123,B123,IF(B19=A124,B124,"X"))))))))) -> 30.99619023
A33: Résistance cathode (Ohm) à 350µS/cm | B33: =IF(D19=B94,F94,IF(D19=B95,F95,IF(D19=B96,F96,IF(D19=B97,F97,IF(D19=B98,F98,IF(D19=B99,F99,IF(D19=B100,F100,IF(D19=B101,F101,"X")))))))) -> 33.03808302 | C33: Résistance cathode (Ohm) à 350µS/cm | D33: =IF(D19=B94,F94,IF(D19=B95,F95,IF(D19=B96,F96,IF(D19=B97,F97,IF(D19=B98,F98,IF(D19=B99,F99,IF(D19=B100,F100,IF(D19=B101,F101,"X")))))))) -> 33.03808302
A34: Résistance ambiante Anode (Ohm) | B34: =(B32*350)/B31 -> 76.29232882 | C34: Résistance ambiante Anode (Ohm) | D34: =(D32*350)/D31 -> 21.69733316
A35: Résistance ambiante Cathode (Ohm) | B35: =(B33*350)/B31 -> 81.31813216 | C35: Résistance ambiante Cathode (Ohm) | D35: =(D33*350)/D31 -> 23.12665812
A36: Résistance équivalente Totale (Ohm) | B36: =B34+B35 -> 157.610461 | C36: Résistance équivalente Totale (Ohm) | D36: =D34+D35 -> 44.82399128
A37: Tension moyenne appliquée à l'Anode (V) | B37: =B4+B5*A14+B6*C21 -> 132.95153 | D37: =B4+B5*B14+B6*C21 -> 213.30203
B38: Tension moyenne à REGLER sur l'Appareil (V)
B39: Minimum | C39: Maximum
B40: =B37*($B$36/$B$34) -> 274.6613225 | C40: =D37*($D$36/$D$34) -> 440.6554603
A41: Compatible (oui/non) | B41: =IF(B24<B40, "OUI", IF(B24=B40, "OUI", "NON")) -> OUI | C41: =IF(C24>C40, "OUI", IF(C24=C40, "OUI", "NON")) -> OUI
B42: Puissance de sortie requise (W) | D42: Si l'engin est alimenté par une Batterie. Temps de décharge pour 25% profondeur de décharge de la batterie (minutes) à ne pas dépasser
B43: Minimum | C43: Maximum | D43: Maximum | E43: Minimum
B44: =(B40^2/B36)*(C21/100) -> 119.6602713 | C44: =(C40^2/D36)*(C21/100) -> 1082.998352 | D44: =((D24*E24)/B44)*0.25*60 -> 21.05962131 | E44: =((D24*E24)/C44)*0.25*60 -> 2.326873347
A45: Compatible (oui/non) | B45: =IF(B21>B44, "OUI", IF(B21=B44, "OUI", "NON")) -> OUI | C45: =IF(B21>C44, "OUI", IF(B21=C44, "OUI", "NON")) -> NON
A81: Paramètres du modèle :
A82: R²aj. (coefficient de détermination ajusté) | B82: 0.6960198364
A83: Paramètre | B83: Valeur | C83: Ecart-type | D83: t de Student | E83: Pr > t | F83: Borne inférieure 95 % | G83: Borne supérieure 95 %
A84: Constante | B84: 10.064669 | C84: 0.8825544 | D84: 11.404021 | E84: < 0,0001 | F84: 1,00 * D(0,5 V/cm) - 9,10 | G84: 1,00 * D(0,5 V/cm) + 9,10 | H84: 0.7954357 | I84: 221
A85: Va | B85: 0.155793 | C85: 0.0061104 | D85: 25.496248 | E85: < 0,0001
A86: Rapport cyclique | B86: -0.048554 | C86: 0.0190726 | D86: -2.545761 | E86: < 0,05
A87: Fréquence | B87: -0.055071 | C87: 0.0131963 | D87: -4.173217 | E87: < 0,0001
A88: L'équation du modèle s'écrit : D(0,5 V/cm) = 10,06 + 0,16 * Va - 0,05 * Rapport cyclique - 0,06 * Fréquence
A91: Tableaux des résistances des cathodes et des anodes
A92: Taille des Cathodes et la Résistance Equivalente mesurée à une conductivité ambiante de 350 µS.cm-1
A93: Référence Cathode | B93: Type de Cathode | C93: Dimension 1 cm) | D93: Dimension 2 (cm) | E93: Epaisseur du cordon/ Taille de la Maille (mm) | F93: Résistance mesurée en Ω
A94: P | B94: Cathode Héron Dream Electronique | C94: 4 tresses de 850 *10 sur une tige de métal | F94: 6.726921288
A95: R | B95: Cathode Martin Pêcheur Dream Electronique | E95: 3 | F95: 33.03808302
A96: S | B96: Cathode Cuivre ELT60 II Hans Grassl | C96: 210 | D96: 15 | E96: 3 | F96: 19.4907083
A97: T | B97: Cathode INOX LR-24 Smith Root | C97: 110 | E97: 5 | F97: 32.32036509
A98: A | B98: Bande de Cuivre 75*2,5 cm | C98: 75 | D98: 2.5 | E98: 3 | F98: 48
A99: B | B99: Bande de Cuivre 150*2,5 cm | C99: 150 | D99: 2.5 | E99: 3 | F99: 31
A100: C | B100: Bande de Cuivre 300*2,5 cm | C100: 300 | D100: 2.5 | E100: 3 | F100: 20
A101: H | B101: Cathode cuivre EL63II 5 mètres | C101: 500 | D101: 2.5 | F101: 15.55702778
A102: D | B102: Maille d'Acier | C102: 25 | D102: 25 | E102: 13 | F102: 49
A103: E | B103: Maille d'Acier | C103: 50 | D103: 50 | E103: 13 | F103: 27
A104: F | B104: Maille d'Acier | C104: 75 | D104: 75 | E104: 13 | F104: 19
A105: G | B105: Maille d'Aluminium expansé | C105: 60 | D105: 55 | E105: 25.4 | F105: 26
A106: H | B106: Maille d'Aluminium perforé | C106: 29 | D106: 39 | F106: 35
A107: I | B107: Maille d'Aluminium perforé | C107: 16 | D107: 17 | F107: 60
A108: J | B108: Plaque d'Aluminium épaisse de 2 mm | C108: 30 | D108: 41 | F108: 34
A109: K | B109: Tôle perforée en Acier Inoxydable | C109: 50 | D109: 50 | E109: 6 | F109: 21
A110: L | B110: Treillis d'Acier soudé | C110: 29 | D110: 40 | E110: 25.4 | F110: 34
A111: M | B111: Treillis d'Acier soudé | C111: 17 | D111: 17 | E111: 25.4 | F111: 64
A112: N | B112: Cable inox | C112: 110 | E112: 5 | F112: 40
A113: O | B113: 8 tresses de cuivre de 90*1 soudées sur une barre en cuivre | E113: 3 | F113: 20
A114: Résistances équivalentes Anodes pour une conductivité ambiante de 350 µS.cm-1
A115: Type d'anode | B115: Résistance mesurée en Ω
A116: Anode Martin Pêcheur (Dream Electronique) 35 cm aluminium | B116: 30.99619023 | C116: Si l'anode n'est pas dans la liste ci-contre :
A117: Anode LR-24 (Smith Root) 28 cm aluminium | B117: 37.09326131
A118: Anode ELT60II (Hans Grassl) 40 cm inox | B118: 27.56274472 | C118: Diamètre anode Da (mm) =
A119: Anode EL63II (Hans Grassl) 30 cm inox | B119: 31.01977771
A120: Anode INOX 20 cm | B120: 41.42431299 | C120: Résistance anode Ra (Ohm) à 350µS/cm
A121: Anode INOX 30 cm | B121: 37.64376653 | D121: (Beaumont et al., 2005)
A122: Anode INOX 40 cm | B122: 30.32563278
A123: Anode INOX 50 cm | B123: 25.34799978
A124: Anode canne anglaise 36 cm de long inox | B124: 30.55818191
C127: Retour au choix du type d'appareil
C129: Retour à l'Accueil

Sheet Achat non portatif DC 1 anode
A1: Paramètres du modèle : | B1: 0.91
A2: R²aj. (coefficient de détermination ajusté)
A3: Paramètre | B3: Valeur | C3: Erreur standard | D3: t de Student | E3: Pr > t | F3: Borne inférieure 95 % | G3: Borne supérieure 95 %
A4: Constant | H4: 0.87 | J4: 186
A5: D(0,1 V,cm-1) | B5: 1.3 | C5: 0.012 | D5: 33.41 | E5: <0,001
A6: Model equation: Va = -22,62 + 1,87 * D(0,1 V,cm-1)
A9: Conseils avant l'achat d'un matériel non portatif avec 1 anode fournissant du courant continu
A11: Conditions environnementales de pêche
A12: Rayon d'ATTRACTION (cm) | C12: Conductivité spécifique pour 25°C (µS/cm) | E12: Température (°C)
A13: Minimum | B13: Maximum | C13: Minimum | D13: Maximum | E13: Minimum | F13: Maximum
A14: 100 | B14: 200 | C14: 15 | D14: 40000 | E14: 10 | F14: 25
B17: Configuration de l'appareil de pêche voulu
B18: Modèle Anode | D18: Modèle Cathode
B19: Anode Martin Pêcheur (Dream Electronique) 35 cm aluminium | D19: Bande de Cuivre 300*2,5 cm
B20: Tensions réglables
B21: Minimum | C21: Maximum | D21: Puissance de sortie de l'engin (W)
B22: 150 | C22: 1000 | D22: 45000
C26: Compatibilité
B30: MINIMUM | D30: MAXIMUM
B31: Conductivité Ambiante (µS/cm²) | C31: =$C$14/(1.023^(25-$E$14)) -> 10.66489916 | D31: Conductivité Ambiante (µS/cm²) | E31: =$D$14/(1.023^(25-$F$14)) -> 40000
B32: Résistance anode (Ohm) à 350µS/cm | C32: =IF(B19=A121,B121, IF(B19=A122,B122, IF(B19=A123,B123, IF(B19=A124,B124, IF(B19=A125,B125, IF(B19=A126,B126, IF(B19=A127,B127,IF(B19=A128,B128,IF(B19=A129,B129,"X"))))))))) -> 30.99619023 | D32: Résistance anode (Ohm) à 350µS/cm | E32: =IF(B19=A121,B121, IF(B19=A122,B122, IF(B19=A123,B123, IF(B19=A124,B124, IF(B19=A125,B125, IF(B19=A126,B126, IF(B19=A127,B127,IF(B19=A128,B128,IF(B19=A129,B129,"X"))))))))) -> 30.99619023
B33: Résistance cathode (Ohm) à 350µS/cm | C33: =IF(D19=B99,F99,IF(D19=B100,F100,IF(D19=B101,F101,IF(D19=B102,F102,IF(D19=B103,F103,IF(D19=B104,F104,IF(D19=B105,F105,IF(D19=B106,F106,"X")))))))) -> 20 | D33: Résistance cathode (Ohm) à 350µS/cm | E33: =IF(D19=B99,F99,IF(D19=B100,F100,IF(D19=B101,F101,IF(D19=B102,F102,IF(D19=B103,F103,IF(D19=B104,F104,IF(D19=B105,F105,IF(D19=B106,F106,"X")))))))) -> 20
B34: Résistance ambiante Anode (Ohm) | C34: =(C32*350)/C31 -> 1017.231051 | D34: Résistance ambiante Anode (Ohm) | E34: =(E32*350)/E31 -> 0.2712166645
B35: Résistance ambiante Cathode (Ohm) | C35: =(C33*350)/C31 -> 656.3587612 | D35: Résistance ambiante Cathode (Ohm) | E35: =(E33*350)/E31 -> 0.175
B36: Résistance équivalente Totale (Ohm) | C36: =C34+C35 -> 1673.589812 | D36: Résistance équivalente Totale (Ohm) | E36: =E34+E35 -> 0.4462166645
B37: Tension moyenne appliquée à l'Anode (V) | C37: =B4+B5*A14 -> 130 | E37: =B4+B5*B14 -> 260
C38: Tension moyenne à REGLER sur l'Appareil (V)
C39: Minimum | D39: Maximum
C40: =C37*($C$36/$C$34) -> 213.8812764 | D40: =E37*($E$36/$E$34) -> 427.7625528
B41: Compatible (oui/non) | C41: =IF(B22<C40, "OUI", IF(B22=C40, "OUI", "NON")) -> OUI | D41: =IF(C22>D40, "OUI", IF(C22=D40, "OUI", "NON")) -> OUI
C42: Puissance de sortie requise (W)
C43: Minimum | D43: Maximum
C44: =(C40^2/C36) -> 27.33357963 | D44: =(D40^2/E36) -> 410071.6449
B45: Compatible (oui/non) | C45: =IF(D22>C44, "OUI", IF(D22=C44, "OUI", "NON")) -> OUI | D45: =IF(D22>D44, "OUI", IF(D22=D44, "OUI", "NON")) -> NON
A96: Tableaux des résistances des cathodes et des anodes
A97: Taille des Cathodes et la Résistance Equivalente mesurée à une conductivité ambiante de 350 µS.cm-1
A98: Référence Cathode | B98: Type de Cathode | C98: Dimension 1 cm) | D98: Dimension 2 (cm) | E98: Epaisseur du cordon/ Taille de la Maille (mm) | F98: Résistance mesurée en Ω
A99: P | B99: Cathode Héron Dream Electronique | C99: 4 tresses de 850 *10 sur une tige de métal | F99: 6.726921288
A100: R | B100: Cathode Martin Pêcheur Dream Electronique | E100: 3 | F100: 33.03808302
A101: S | B101: Cathode Cuivre ELT60 II Hans Grassl | C101: 210 | D101: 15 | E101: 3 | F101: 19.4907083
A102: T | B102: Cathode INOX LR-24 Smith Root | C102: 110 | E102: 5 | F102: 32.32036509
A103: A | B103: Bande de Cuivre 75*2,5 cm | C103: 75 | D103: 2.5 | E103: 3 | F103: 48
A104: B | B104: Bande de Cuivre 150*2,5 cm | C104: 150 | D104: 2.5 | E104: 3 | F104: 31
A105: C | B105: Bande de Cuivre 300*2,5 cm | C105: 300 | D105: 2.5 | E105: 3 | F105: 20
A106: H | B106: Cathode cuivre EL63II 5 mètres | C106: 500 | D106: 2.5 | F106: 15.55702778
A107: D | B107: Maille d'Acier | C107: 25 | D107: 25 | E107: 13 | F107: 49
A108: E | B108: Maille d'Acier | C108: 50 | D108: 50 | E108: 13 | F108: 27
A109: F | B109: Maille d'Acier | C109: 75 | D109: 75 | E109: 13 | F109: 19
A110: G | B110: Maille d'Aluminium expansé | C110: 60 | D110: 55 | E110: 25.4 | F110: 26
A111: H | B111: Maille d'Aluminium perforé | C111: 29 | D111: 39 | F111: 35
A112: I | B112: Maille d'Aluminium perforé | C112: 16 | D112: 17 | F112: 60
A113: J | B113: Plaque d'Aluminium épaisse de 2 mm | C113: 30 | D113: 41 | F113: 34
A114: K | B114: Tôle perforée en Acier Inoxydable | C114: 50 | D114: 50 | E114: 6 | F114: 21
A115: L | B115: Treillis d'Acier soudé | C115: 29 | D115: 40 | E115: 25.4 | F115: 34
A116: M | B116: Treillis d'Acier soudé | C116: 17 | D116: 17 | E116: 25.4 | F116: 64
A117: N | B117: Cable inox | C117: 110 | E117: 5 | F117: 40
A118: O | B118: 8 tresses de cuivre de 90*1 soudées sur une barre en cuivre | E118: 3 | F118: 20
A119: Résistances équivalentes Anodes pour une conductivité ambiante de 350 µS.cm-1
A120: Type d'anode | B120: Résistance mesurée en Ω
A121: Anode Martin Pêcheur (Dream Electronique) 35 cm aluminium | B121: 30.99619023 | C121: Si l'anode n'est pas dans la liste ci-contre :
A122: Anode LR-24 (Smith Root) 28 cm aluminium | B122: 37.09326131
A123: Anode ELT60II (Hans Grassl) 40 cm inox | B123: 27.56274472 | C123: Diamètre anode Da (mm) =
A124: Anode EL63II (Hans Grassl) 30 cm inox | B124: 31.01977771
A125: Anode INOX 20 cm | B125: 41.42431299 | C125: Résistance anode Ra (Ohm) à 350µS/cm
A126: Anode INOX 30 cm | B126: 37.64376653 | D126: (Beaumont et al., 2005)
A127: Anode INOX 40 cm | B127: 30.32563278
A128: Anode INOX 50 cm | B128: 25.34799978
A129: Anode canne anglaise 36 cm de long inox | B129: 30.55818191
C133: Retour au choix du type d'appareil
C145: Retour à l'Accueil

Sheet Achat non portatif DC 2anodes
A1: Paramètres du modèle : | B1: 0.91
A2: R²aj. (coefficient de détermination ajusté)
A3: Paramètre | B3: Valeur | C3: Erreur standard | D3: t de Student | E3: Pr > t | F3: Borne inférieure 95 % | G3: Borne supérieure 95 %
A4: Constant | H4: 0.87 | J4: 186
A5: D(0,1 V,cm-1) | B5: 1.3 | C5: 0.012 | D5: 33.41 | E5: <0,001
A6: Model equation: Va = -22,62 + 1,87 * D(0,1 V,cm-1)
A8: L'équation du modèle s'écrit : Va = -17,64 + 1,85 * D(0,1 V/cm)
A9: Conseils avant l'achat d'un matériel non portatif avec 2 anodes fournissant du courant continu
A11: Conditions environnementales de pêche
A12: Rayon d'ATTRACTION (cm) | C12: Conductivité spécifique pour 25°C (µS/cm) | E12: Température (°C)
A13: Minimum | B13: Maximum | C13: Minimum | D13: Maximum | E13: Minimum | F13: Maximum
A14: 150 | B14: 150 | C14: 50 | D14: 3000 | E14: 10 | F14: 20
B17: Configuration de l'appareil de pêche voulu
B18: Modèle Anode | D18: Modèle Cathode
B19: Anode INOX 40 cm | D19: Cathode Héron Dream Electronique
B20: Tensions réglables
B21: Minimum | C21: Maximum | D21: Puissance de sortie de l'engin (W)
B22: 140 | C22: 650 | D22: 6000
C26: Compatibilité
B30: MINIMUM | D30: MAXIMUM
B31: Conductivité Ambiante (µS/cm²) | C31: =$C$14/(1.023^(25-$E$14)) -> 35.54966386 | D31: Conductivité Ambiante (µS/cm²) | E31: =$D$14/(1.023^(25-$F$14)) -> 2677.583889
B32: Résistance anode (Ohm) à 350µS/cm | C32: =IF(B19=A122,B122, IF(B19=A123,B123, IF(B19=A124,B124, IF(B19=A125,B125, IF(B19=A126,B126, IF(B19=A127,B127, IF(B19=A128,B128,IF(B19=A129,B129,IF(B19=A130,B130,"X"))))))))) -> 30.32563278 | D32: Résistance anode (Ohm) à 350µS/cm | E32: =IF(B19=A122,B122, IF(B19=A123,B123, IF(B19=A124,B124, IF(B19=A125,B125, IF(B19=A126,B126, IF(B19=A127,B127, IF(B19=A128,B128,IF(B19=A129,B129,IF(B19=A130,B130,"X"))))))))) -> 30.32563278
B33: Résistance cathode (Ohm) à 350µS/cm | C33: =IF(D19=B100,F100,IF(D19=B101,F101,IF(D19=B102,F102,IF(D19=B103,F103,IF(D19=B104,F104,IF(D19=B105,F105,IF(D19=B106,F106,IF(D19=B107,F107,"X")))))))) -> 6.726921288 | D33: Résistance cathode (Ohm) à 350µS/cm | E33: =IF(D19=B100,F100,IF(D19=B101,F101,IF(D19=B102,F102,IF(D19=B103,F103,IF(D19=B104,F104,IF(D19=B105,F105,IF(D19=B106,F106,IF(D19=B107,F107,"X")))))))) -> 6.726921288
B34: Résistance ambiante Anode (Ohm) | C34: =(C32*350)/C31 -> 298.5674214 | D34: Résistance ambiante Anode (Ohm) | E34: =(E32*350)/E31 -> 3.964010807
B35: Résistance ambiante équivalente 2 Anodes arrangées (Ohm) | C35: =C34/2 -> 149.2837107 | D35: Résistance ambiante équivalente 2 Anodes arrangées (Ohm) | E35: =E34/2 -> 1.982005404
B36: Résistance ambiante Cathode (Ohm) | C36: =(C33*350)/C31 -> 66.22910585 | D36: Résistance ambiante Cathode (Ohm) | E36: =(E33*350)/E31 -> 0.8793085665
B37: Résistance équivalente Totale (Ohm) | C37: =C35+C36 -> 215.5128166 | D37: Résistance équivalente Totale (Ohm) | E37: =E35+E36 -> 2.86131397
B38: Tension moyenne appliquée à l'Anode (V) | C38: =B5*A14 -> 195 | E38: =B5*B14 -> 195
C39: Tension moyenne à REGLER sur l'Appareil (V)
C40: Minimum | D40: Maximum
C41: =C38*($C$37/$C$34) -> 140.755475 | D41: =E38*($E$37/$E$34) -> 140.755475
B42: Compatible (oui/non) | C42: =IF(B22<C41, "OUI", IF(B22=C41, "OUI", "NON")) -> OUI | D42: =IF(C22>D41, "OUI", IF(C22=D41, "OUI", "NON")) -> OUI
C43: Puissance de sortie requise (W)
C44: Minimum | D44: Maximum
C45: =(C41^2/C37) -> 91.93004883 | D45: =(D41^2/E37) -> 6924.12785
B46: Compatible (oui/non) | C46: =IF(D22>C45, "OUI", IF(D22=C45, "OUI", "NON")) -> OUI | D46: =IF(D22>D45, "OUI", IF(D22=D45, "OUI", "NON")) -> NON
C49: Retour au choix du type d'appareil
C51: Retour à l'Accueil
A97: Tableaux des résistances des cathodes et des anodes
A98: Taille des Cathodes et la Résistance Equivalente mesurée à une conductivité ambiante de 350 µS.cm-1
A99: Référence Cathode | B99: Type de Cathode | C99: Dimension 1 cm) | D99: Dimension 2 (cm) | E99: Epaisseur du cordon/ Taille de la Maille (mm) | F99: Résistance mesurée en Ω
A100: P | B100: Cathode Héron Dream Electronique | C100: 4 tresses de 850 *10 sur une tige de métal | F100: 6.726921288
A101: R | B101: Cathode Martin Pêcheur Dream Electronique | E101: 3 | F101: 33.03808302
A102: S | B102: Cathode Cuivre ELT60 II Hans Grassl | C102: 210 | D102: 15 | E102: 3 | F102: 19.4907083
A103: T | B103: Cathode INOX LR-24 Smith Root | C103: 110 | E103: 5 | F103: 32.32036509
A104: A | B104: Bande de Cuivre 75*2,5 cm | C104: 75 | D104: 2.5 | E104: 3 | F104: 48
A105: B | B105: Bande de Cuivre 150*2,5 cm | C105: 150 | D105: 2.5 | E105: 3 | F105: 31
A106: C | B106: Bande de Cuivre 300*2,5 cm | C106: 300 | D106: 2.5 | E106: 3 | F106: 20
A107: H | B107: Cathode cuivre EL63II 5 mètres | C107: 500 | D107: 2.5 | F107: 15.55702778
A108: D | B108: Maille d'Acier | C108: 25 | D108: 25 | E108: 13 | F108: 49
A109: E | B109: Maille d'Acier | C109: 50 | D109: 50 | E109: 13 | F109: 27
A110: F | B110: Maille d'Acier | C110: 75 | D110: 75 | E110: 13 | F110: 19
A111: G | B111: Maille d'Aluminium expansé | C111: 60 | D111: 55 | E111: 25.4 | F111: 26
A112: H | B112: Maille d'Aluminium perforé | C112: 29 | D112: 39 | F112: 35
A113: I | B113: Maille d'Aluminium perforé | C113: 16 | D113: 17 | F113: 60
A114: J | B114: Plaque d'Aluminium épaisse de 2 mm | C114: 30 | D114: 41 | F114: 34
A115: K | B115: Tôle perforée en Acier Inoxydable | C115: 50 | D115: 50 | E115: 6 | F115: 21
A116: L | B116: Treillis d'Acier soudé | C116: 29 | D116: 40 | E116: 25.4 | F116: 34
A117: M | B117: Treillis d'Acier soudé | C117: 17 | D117: 17 | E117: 25.4 | F117: 64
A118: N | B118: Cable inox | C118: 110 | E118: 5 | F118: 40
A119: O | B119: 8 tresses de cuivre de 90*1 soudées sur une barre en cuivre | E119: 3 | F119: 20
A120: Résistances équivalentes Anodes pour une conductivité ambiante de 350 µS.cm-1
A121: Type d'anode | B121: Résistance mesurée en Ω
A122: Anode Martin Pêcheur (Dream Electronique) 35 cm aluminium | B122: 30.99619023 | C122: Si l'anode n'est pas dans la liste ci-contre :
A123: Anode LR-24 (Smith Root) 28 cm aluminium | B123: 37.09326131
A124: Anode ELT60II (Hans Grassl) 40 cm inox | B124: 27.56274472 | C124: Diamètre anode Da (mm) =
A125: Anode EL63II (Hans Grassl) 30 cm inox | B125: 31.01977771
A126: Anode INOX 20 cm | B126: 41.42431299 | C126: Résistance anode Ra (Ohm) à 350µS/cm
A127: Anode INOX 30 cm | B127: 37.64376653 | D127: (Beaumont et al., 2005)
A128: Anode INOX 40 cm | B128: 30.32563278
A129: Anode INOX 50 cm | B129: 25.34799978
A130: Anode canne anglaise 36 cm de long inox | B130: 30.55818191
